Workbook

Sheet Voorblad
A10: I | B10: Algemene informatie en gebruik van het rekensheet (versie 1)
A11: 1 | C11: Dit rekensheet is ontwikkeld voor de Subsidieregeling Indirecte Kostencompensatie ETS (IKC-ETS) en is van toepassing voor het aanvraagjaar: | N11: =R11+1 -> 2024 | O11: De subsidie heeft betrekking op: | R11: =JAAR -> 2023
A12: 2 | C12: Aanbevolen wordt dat u het bestand van het begin tot het einde doorloopt. Er zijn enkele functies die u afhankelijk van de eerder ingevulde gegevens door het formulier zullen leiden.
A13: 3 | C13: Indien er een nulwaarde te rapporteren is, moet deze worden ingevuld in plaats van de cel leeg te laten. Indien er een cel wordt leeg gelaten, weet RVO niet of de waarde niet gerapporteerd, niet relevant of onbekend is.
A14: 4 | C14: In diverse velden kunt u uit vooraf bepaalde invoergegevens kiezen. Voor het kiezen uit een vervolgkeuzelijst klikt u met de muis op het pijltje dat aan de rechterkant van de cel verschijnt als u de cel heeft geselecteerd.
A15: 5 | C15: Kleurcodes:
F16: Gele velden geven verplichte invoer aan. Als het onderwerp echter niet op de inrichting van toepassing is, is er geen invoer vereist.
F17: Donkergele velden geven cross-check velden aan. De waarden worden niet gebruikt voor het berekenen van het subsidiebedrag.
F18: Groene velden geven een keuzelijst aan.
F19: Lichtblauwe velden tonen automatisch berekende resultaten of gegevens die automatisch worden ingevuld.
A21: 6 | C21: Dit rekensheet is vergrendeld tegen gegevensinvoer, met uitzondering van gele velden.
A22: 7 | C22: Na het invullen van alle gegevens kunt u op de knop "Genereer verstuurbestand" drukken. Voer geen aanpassingen uit aan de titel en inhoud van dit bestand en stuur deze naar RVO toe.
A24: II | B24: Disclaimer
A25: DISCLAIMER: Alle formules zijn zorgvuldig en grondig ontwikkeld, fouten kunnen echter niet volledig worden uitgesloten. Zoals hierboven vermeld, is volledige transparantie voor het controleren van de validiteit van de berekeningen verzekerd. Noch de auteurs van dit bestand, noch de Europese Commissie kan aansprakelijk worden gesteld voor eventuele schade als gevolg van onjuiste of misleidende resultaten van de verschafte berekeningen. De gebruiker van dit bestand (d.w.z. de exploitant van een ETS-inrichting) is volledig verantwoordelijk voor het opgeven van de juiste gegevens aan de bevoegde instantie.

Sheet A. Inrichting (hidden)
X1: Hidden
A2: A. | B2: Blad "inrichting": gegevens over de inrichting en de berekeningsmethodiek
A4: I | B4: Identificatie van de inrichting
A6: 1 | B6: Algemene informatie:
B8: (a) | C8: Naam van de inrichting:
C9: Locatie van de inrichting:
C10: Naam van de subsidieaanvrager: | Y10: =IF(OR(H115<>"",H116<>"",H117<>"",H118<>"",H119<>"",H120<>"",H121<>"",H122<>"",H123<>"",H124<>""),1,0) -> 0
C11: KvK-nummer van de subsidieaanvrager:
C12: Wat is de SBI-code, zoals bij de KvK bekend als hoofdactiviteit van de inrichting?
B14: (b) | C14: Informatie over vergunning voor broeikasgasemissies:
C15: Gelieve hier informatie te geven (indien van toepassing) over de vergunning voor broeikasgasemissies (= vergunning verleend door de NEa) | K15: Vergunning-ID | M15: NL-
B18: (c) | C18: Onder welke NACE-code heeft uw bedrijf toegevoegde waarde gerapporteerd voor structurele bedrijfsstatistiek?
C20: Als u niet zeker bent over de hier in te vullen waarden, neem dan contact op met het CBS
A27: II | B27: Beschrijving van de inrichting
B29: Geef een beschrijving van de inrichting, het productieproces en de geproduceerde producten. Geef aan waar binnen de inrichting productie plaatsvindt, die onder de 14 sectoren (NACE-codes) valt die in aanmerking komen voor subsidie.
B32: Voeg tevens toe, in een aparte bijlage bij de aanvraag, een schematische weergave van het productieproces van de inrichting. Maak hierin duidelijk welke delen van de inrichting wel/niet zijn meegenomen bij het berekenen van het maximale subsidiebedrag. Geef hierbij tevens aan welke delen van de inrichting vallen onder een productbenchmark of Fall Back benchmark, zie hiervoor de IKC-ETS-website, of onder geen van beide. Let op: om naar de volgende regel te gaan dient u ALT + Enter te gebruiken.
A53: III | B53: Berekeningsmethodes
A55: 1 | B55: Productbenchmarks
C57: Kies hier de eventuele productbenchmarks die van belang zijn voor de berekening van het maximale subsidiebedrag.
C58: Voor elk type product mag slechts één keer worden gekozen. Gedoeld wordt op de productbenchmarks, zie hiervoor de IKC-ETS-website.
C60: Opmerking: de juiste invoer is hier essentieel met het oog op de berekening van het maximale subsidiebedrag voor productbenchmarks in blad B.
B62: Nr. | C62: Producttype | I62: Benchmark-waarde | L62: Benchmark-eenheid | N62: Productie-eenheid
B63: 1 | I63: =IFERROR(VLOOKUP(C63,Benchmarks,2,FALSE),"") ->  | L63: =IFERROR(VLOOKUP(C63,Benchmarks,3,FALSE),"") ->  | N63: =IFERROR(VLOOKUP(C63,Benchmarks,4,FALSE),"") -> 
B65: =B63+1 -> 2 | I65: =IFERROR(VLOOKUP(C65,Benchmarks,2,FALSE),"") ->  | L65: =IFERROR(VLOOKUP(C65,Benchmarks,3,FALSE),"") ->  | N65: =IFERROR(VLOOKUP(C65,Benchmarks,4,FALSE),"") -> 
B67: =B65+1 -> 3 | I67: =IFERROR(VLOOKUP(C67,Benchmarks,2,FALSE),"") ->  | L67: =IFERROR(VLOOKUP(C67,Benchmarks,3,FALSE),"") ->  | N67: =IFERROR(VLOOKUP(C67,Benchmarks,4,FALSE),"") -> 
B69: =B67+1 -> 4 | I69: =IFERROR(VLOOKUP(C69,Benchmarks,2,FALSE),"") ->  | L69: =IFERROR(VLOOKUP(C69,Benchmarks,3,FALSE),"") ->  | N69: =IFERROR(VLOOKUP(C69,Benchmarks,4,FALSE),"") -> 
X70: =IF(AND(C63<>"",C65="",OR(C67<>"",C69<>"",C71<>"",C73<>"")),"niet door",IF(AND(C63<>"",C65<>"",C67="",OR(C69<>"",C71<>"",C73<>"")),"niet door",IF(AND(C63<>"",C65<>"",C67<>"",C69="",OR(C71<>"",C73<>"")),"niet door",IF(AND(C63<>"",C65<>"",C67<>"",C69<>"",C71="",OR(C73<>"")),"niet door",IF(AND(C63="",OR(C65<>"",C67<>"",C69<>"",C71<>"",C73<>"")),"niet door","door"))))) -> door
B71: =B69+1 -> 5 | I71: =IFERROR(VLOOKUP(C71,Benchmarks,2,FALSE),"") ->  | L71: =IFERROR(VLOOKUP(C71,Benchmarks,3,FALSE),"") ->  | N71: =IFERROR(VLOOKUP(C71,Benchmarks,4,FALSE),"") -> 
B73: =B71+1 -> 6 | I73: =IFERROR(VLOOKUP(C73,Benchmarks,2,FALSE),"") ->  | L73: =IFERROR(VLOOKUP(C73,Benchmarks,3,FALSE),"") ->  | N73: =IFERROR(VLOOKUP(C73,Benchmarks,4,FALSE),"") -> 
A76: 2 | B76: Fall Back-methode
C78: Wordt (ook) de Fall Back-methode gehanteerd voor het berekenen van het maximale subsidiebedrag?
C79: Als elektriciteit wordt verbruikt ten behoeve van de productie van producten die geen productbenchmark hebben maar wel behoren tot de sectoren die genoemd zijn in bijlage 4.4.1 van de Regeling nationale EZ-subsidies, dan wordt (ook) de Fall-Back methode gehanteerd voor berekening van het maximale subsidiebedrag.
A81: IV | B81: Volledige electriciteitsbalans van de inrichting
A83: 1 | B83: Volledige elektriciteitsbalans van de installatie
B85: (a) | C85: Totale nettohoeveelheid in de installatie opgewekte elektriciteit
C86: Uit brandstof opgewekte elektriciteit (i) betreft onder andere WKK. Andere elektriciteitsopwekking is onder andere water-, wind-, zonne-energie, uit expansieturbines en andere niet-ETS-processen.
F87: Eenheid | G87: =JAAR -> 2023
B88: i. | C88: Netto uit brandstoffen opgewekte elektriciteit | F88: MWh / jaar
C90: Hoeveelheid brandstoffen ingezet voor electriciteitsopwekking | F90: TJ/jaar
B91: ii. | C91: Andere opgewekte elektriciteit | F91: MWh / jaar
B93: (b) | C93: Totale elektriciteit geïmporteerd vanaf het net of andere inrichtingen:
C94: Geïmporteerde elektriciteit | F94: MWh / jaar
B97: (c) | C97: Totale elektriciteit geëxporteerd naar het net of andere inrichtingen
C98: Geëxporteerde elektriciteit | F98: MWh / jaar
B101: (d) | C101: Totale elektriciteit bruikbaar voor gebruik in de inrichting (= ai+aii+b-c)
C102: Bruikbare elektriciteit | F102: MWh / jaar | G102: =IFERROR(G88+G91+G94-G98,0) -> 0
B105: (e) | C105: Totale elektriciteit verbruikt in de inrichting
C106: Elektriciteit verbruikt in de inrichting | F106: MWh / jaar
B109: (f) | C109: Plausibiliteitscontrole: Som van invoer van elektriciteit in blad B en C
B110: i. | C110: Elektriciteit voor product BM | F110: MWh / jaar | G110: =IF($C$63<>"",'B. Product BM1'!H$34,0)+IF($C$65<>"",'B. Product BM2'!H$34,0)+IF($C$67<>"",'B. Product BM3'!H$34,0)+IF($C$69<>"",'B. Product BM4'!H$34,0)+IF($C$71<>"",'B. Product BM5'!H$34,0)+IF($C$73<>"",'B. Product BM6'!H$34,0) -> 0
B111: ii. | C111: Electriciteit ingevuld voor Fall-Back | F111: MWh / jaar | G111: =IF($N$78="Ja",'C. Fall Back'!H24,0) -> 0
B113: iii | C113: i+ii vergeleken met e | F113: % | G113: =IFERROR((G110+G111)/G106,"0") -> 0

Sheet B. Product BM1 (hidden)
Z1: Hidden Range
A2: B. | B2: Blad "productbenchmarks": historische gegevens productbenchmarks
A4: I | B4: Historische gegevens productbenchmark | Y4: ch | Z4: =IF(H6="Hoog-waardige chemicaliën",1,0) -> 0
Y5: eth | Z5: =IF(H6="Ethyleen-oxide/ ethyleen-glycolen EO/EG",1,0) -> 0
A6: 1 | B6: ="Productbenchmark "&A6 -> Productbenchmark 1 | Y6: arom | Z6: =IF(H6="Aromaten",1,0) -> 0
R12: In Bronsheet witte ruimte kleiner maken, voor alle BM
Z13: Dataset compleet? | AA13: =IF(H11="ja","waar","onwaar") -> onwaar
B18: (a) | C18: Activiteitsniveaus
C19: Bij dit punt dienen de "hoofdactiviteitsniveaus" te worden gemeld. Dit zijn de gegevens die toepasbaar zijn voor de berekening van de subsidie.
C20: Doorgaans zijn dit de productiegegevens van het product.
C22: =IF(OR(H6="Hoog-waardige chemicaliën",H6="Aromaten",H6="Ethyleen-oxide/ ethyleen-glycolen EO/EG"),"U dient de passende rekentool te gebruiken","") -> 
C24: Hoofdactiviteitsniveau: | G24: Eenheid | H24: =JAAR -> 2023
C25: Productiegegevens | G25: ton | AA25: =IF(H27="","U heeft de productiegegevens niet ingevoerd. Voer de productiegegevens in of geef aan dat u dit jaar niet geproduceerd heeft.",IF(AND(H27<>"",OR(H45="",H46="",H47="",H48=""),$H$36="relevant"),"U heeft gegevens in de tabel -Uitwisselbaarheid van brandstof en elektriciteit- niet ingevuld. Vul de gegevens in of een 0 indien niet van toepassing.","")) -> U heeft de productiegegevens niet ingevoerd. Voer de productiegegevens in of geef aan dat u dit jaar niet geproduceerd heeft.
C27: Waarde gebruikt voor berekening | H27: =IF($C$22<>"",H26,IF(H25="","",H25)) -> 
C28: Referentie-output
B31: (b) | C31: Elektriciteitsverbruik:
C32: Hoeveelheid elektriciteit die verbruikt is bij de productie van het bovengenoemd product.
G33: Eenheid | H33: =JAAR -> 2023
C34: Totale elektriciteitsverbruik voor dit product | G34: MWh
C37: Volgens bijlage 4.4.2, behorende bij artikel 4.4.1 en 4.4.3 van de Regeling nationale EZ-subsidies zijn de volgende gegevens nodig voor de berekening van de correctiefactor van de productbenchmark:
C38: - | D38: De relevante indirecte emissies ten gevolge van deze productie;
C39: - | D39: De totale directe emissies ten gevolge van deze productie, bepaald op basis van:
E40: - De aan deze productie toegewezen directe emissies;
E41: - Nettohoeveelheid (meetbare) warmte voor deze productie;
E42: - Het relevante elektriciteitsgebruik voor deze productie
C43: De relevante factor wordt bepaald op basis van de referentiejaren die van toepassing zijn.
C44: Parameter | G44: Eenheid | H44: =JAAR -> 2023
C45: Directe emissies | G45: t CO2 / jaar
C46: Geïmporteerde warmte | G46: TJ / jaar
C47: Geëxporteerde warmte | G47: TJ / jaar
C48: Uitwisselbaar elektriciteitsverbruik | G48: MWh / jaar
C49: Totale directe emissies | G49: t CO2 / jaar | H49: =IF(COUNT(H45:H48)>0,H45+(H46-H47)*EU_BMHEAT,"") -> 
C50: Indirecte emissies | G50: t CO2 / jaar | H50: =IF(COUNT(H45:H48)>0,H48*EU_BMEG,"") -> 
C52: Factor voor correctie van benchmark | H52: =IFERROR(($H$50/($H$49+$H$50))/EU_BMEG,0) -> 0
B54: (c) | C54: Identificatie van producten die vallen onder deze productbenchmark en worden geproduceerd binnen de inrichting:
C55: Een productbenchmark kan een aantal soortgelijke producten (of productgroepen) omvatten. In sommige gevallen kunnen tussenproducten relevant zijn voor de berekening van het maximale subsidiebedrag. De relevante producten moeten hier worden vermeld, zodat kan worden beoordeeld of de voor deze productbenchmark omschreven grenzen voldoen aan de in de wet gestelde eisen.
C59: Gebruik van PRODCOM-codes 2021 is verplicht.
C60: Hier vindt u een lijst met PRODCOM-codes 2021.
D62: Naam van product of productgroep | I62: Procedé | L62: PRODCOM 2007
C63: 1
C65: 2
C67: 3
C69: 4
C71: 5
C72: 5
B74: (d)
C75: Geef een toelichting op de wijze waarop de productiehoeveelheden en elektriciteitsverbruik is bepaald en hoe eventueel de directe emissies, uitwisselbaar elektriciteitsverbruik en warmte import en export zijn bepaald. Licht toe welke installatieonderdelen zijn meegenomen in de berekening. Maak duidelijk hoe de gegevens verkregen zijn (meting, berekening, balansmethode) en geef aan op welke wijze is verzekerd dat de best beschikbare informatie is gebruikt. Let op: om naar de volgende regel te gaan dient u ALT + Enter te gebruiken.
C96: Stuurt u ter verduidelijking of ter aanvulling nog een bijlage mee met de aanvraag?

Sheet B. Product BM2 (hidden)
Z1: Hidden Range
A2: B. | B2: Blad "productbenchmarks": historische gegevens productbenchmarks
A4: I | B4: Historische gegevens productbenchmark | Y4: ch | Z4: =IF(H6="Hoog-waardige chemicaliën",1,0) -> 0
Y5: eth | Z5: =IF(H6="Ethyleen-oxide/ ethyleen-glycolen EO/EG",1,0) -> 0
A6: 2 | B6: ="Productbenchmark "&A6 -> Productbenchmark 2 | Y6: arom | Z6: =IF(H6="Aromaten",1,0) -> 0
Z13: Dataset compleet? | AA13: =IF(H11="ja","waar","onwaar") -> onwaar
B18: (a) | C18: Activiteitsniveaus
C19: Bij dit punt dienen de "hoofdactiviteitsniveaus" te worden gemeld. Dit zijn de gegevens die toepasbaar zijn voor de berekening van de subsidie.
C20: Doorgaans zijn dit de productiegegevens van het product.
C22: =IF(OR(H6="Hoog-waardige chemicaliën",H6="Aromaten",H6="Ethyleen-oxide/ ethyleen-glycolen EO/EG"),"U dient de passende rekentool te gebruiken","") -> 
C24: Hoofdactiviteitsniveau: | G24: Eenheid | H24: =JAAR -> 2023
C25: Productiegegevens | G25: ton | AA25: =IF(H27="","U heeft de productiegegevens niet ingevoerd. Voer de productiegegevens in of geef aan dat u dit jaar niet geproduceerd heeft.",IF(AND(H27<>"",OR(H45="",H46="",H47="",H48=""),$H$36="relevant"),"U heeft gegevens in de tabel -Uitwisselbaarheid van brandstof en elektriciteit- niet ingevuld. Vul de gegevens in of een 0 indien niet van toepassing.","")) -> U heeft de productiegegevens niet ingevoerd. Voer de productiegegevens in of geef aan dat u dit jaar niet geproduceerd heeft.
C27: Waarde gebruikt voor berekening | H27: =IF($C$22<>"",H26,IF(H25="","",H25)) -> 
C28: Referentie-output
B31: (b) | C31: Elektriciteitsverbruik:
C32: Hoeveelheid elektriciteit die verbruikt is bij de productie van het bovengenoemd product.
G33: Eenheid | H33: =JAAR -> 2023
C34: Totale elektriciteitsverbruik voor dit product | G34: MWh
C37: Volgens bijlage 4.4.2, behorende bij artikel 4.4.1 en 4.4.3 van de Regeling nationale EZ-subsidies zijn de volgende gegevens nodig voor de berekening van de correctiefactor van de productbenchmark:
C38: - | D38: De relevante indirecte emissies ten gevolge van deze productie;
C39: - | D39: De totale directe emissies ten gevolge van deze productie, bepaald op basis van:
E40: - De aan deze productie toegewezen directe emissies;
E41: - Nettohoeveelheid (meetbare) warmte voor deze productie;
E42: - Het relevante elektriciteitsgebruik voor deze productie
C43: De relevante factor wordt bepaald op basis van de referentiejaren die van toepassing zijn.
C44: Parameter | G44: Eenheid | H44: =JAAR -> 2023
C45: Directe emissies | G45: t CO2 / jaar
C46: Geïmporteerde warmte | G46: TJ / jaar
C47: Geëxporteerde warmte | G47: TJ / jaar
C48: Uitwisselbaar elektriciteitsverbruik | G48: MWh / jaar
C49: Totale directe emissies | G49: t CO2 / jaar | H49: =IF(COUNT(H45:H48)>0,H45+(H46-H47)*EU_BMHEAT,"") -> 
C50: Indirecte emissies | G50: t CO2 / jaar | H50: =IF(COUNT(H45:H48)>0,H48*EU_BMEG,"") -> 
C52: Factor voor correctie van benchmark | H52: =IFERROR(($H$50/($H$49+$H$50))/EU_BMEG,0) -> 0
B54: (c) | C54: Identificatie van producten die vallen onder deze productbenchmark en worden geproduceerd binnen de inrichting:
C55: Een productbenchmark kan een aantal soortgelijke producten (of productgroepen) omvatten. In sommige gevallen kunnen tussenproducten relevant zijn voor de berekening van het maximale subsidiebedrag. De relevante producten moeten hier worden vermeld, zodat kan worden beoordeeld of de voor deze productbenchmark omschreven grenzen voldoen aan de in de wet gestelde eisen.
C59: Gebruik van PRODCOM-codes 2021 is verplicht.
C60: Hier vindt u een lijst met PRODCOM-codes 2021.
D62: Naam van product of productgroep | I62: Procedé | L62: PRODCOM 2007
C63: 1
C65: 2
C67: 3
C69: 4
C71: 5
C72: 5
B74: (d) | C74: Toelichting op de verstrekte gegevens
C75: Geef een toelichting op de wijze waarop de productiehoeveelheden en elektriciteitsverbruik is bepaald en hoe eventueel de directe emissies, uitwisselbaar elektriciteitsverbruik en warmte import en export zijn bepaald. Licht toe welke installatieonderdelen zijn meegenomen in de berekening. Maak duidelijk hoe de gegevens verkregen zijn (meting, berekening, balansmethode) en geef aan op welke wijze is verzekerd dat de best beschikbare informatie is gebruikt. Let op: om naar de volgende regel te gaan dient u ALT + Enter te gebruiken.
C96: Stuurt u ter verduidelijking of ter aanvulling nog een bijlage mee met de aanvraag?

Sheet B. Product BM3 (hidden)
Z1: Hidden Range
A2: B. | B2: Blad "productbenchmarks": historische gegevens productbenchmarks
A4: I | B4: Historische gegevens productbenchmark | Y4: ch | Z4: =IF(H6="Hoog-waardige chemicaliën",1,0) -> 0
Y5: eth | Z5: =IF(H6="Ethyleen-oxide/ ethyleen-glycolen EO/EG",1,0) -> 0
A6: 3 | B6: ="Productbenchmark "&A6 -> Productbenchmark 3 | Y6: arom | Z6: =IF(H6="Aromaten",1,0) -> 0
Z13: Dataset compleet? | AA13: =IF(H11="ja","waar","onwaar") -> onwaar
B18: (a) | C18: Activiteitsniveaus
C19: Bij dit punt dienen de "hoofdactiviteitsniveaus" te worden gemeld. Dit zijn de gegevens die toepasbaar zijn voor de berekening van de subsidie.
C20: Doorgaans zijn dit de productiegegevens van het product.
C22: =IF(OR(H6="Hoog-waardige chemicaliën",H6="Aromaten",H6="Ethyleen-oxide/ ethyleen-glycolen EO/EG"),"U dient de passende rekentool te gebruiken","") -> 
C24: Hoofdactiviteitsniveau: | G24: Eenheid | H24: =JAAR -> 2023
C25: Productiegegevens | G25: ton | AA25: =IF(H27="","U heeft de productiegegevens niet ingevoerd. Voer de productiegegevens in of geef aan dat u dit jaar niet geproduceerd heeft.",IF(AND(H27<>"",OR(H45="",H46="",H47="",H48=""),$H$36="relevant"),"U heeft gegevens in de tabel -Uitwisselbaarheid van brandstof en elektriciteit- niet ingevuld. Vul de gegevens in of een 0 indien niet van toepassing.","")) -> U heeft de productiegegevens niet ingevoerd. Voer de productiegegevens in of geef aan dat u dit jaar niet geproduceerd heeft.
C27: Waarde gebruikt voor berekening | H27: =IF($C$22<>"",H26,IF(H25="","",H25)) -> 
C28: Referentie-output
B31: (b) | C31: Elektriciteitsverbruik:
C32: Hoeveelheid elektriciteit die verbruikt is bij de productie van het bovengenoemd product.
G33: Eenheid | H33: =JAAR -> 2023
C34: Totale elektriciteitsverbruik voor dit product | G34: MWh
C37: Volgens bijlage 4.4.2, behorende bij artikel 4.4.1 en 4.4.3 van de Regeling nationale EZ-subsidies zijn de volgende gegevens nodig voor de berekening van de correctiefactor van de productbenchmark:
C38: - | D38: De relevante indirecte emissies ten gevolge van deze productie;
C39: - | D39: De totale directe emissies ten gevolge van deze productie, bepaald op basis van:
E40: - De aan deze productie toegewezen directe emissies;
E41: - Nettohoeveelheid (meetbare) warmte voor deze productie;
E42: - Het relevante elektriciteitsgebruik voor deze productie
C43: De relevante factor wordt bepaald op basis van de referentiejaren die van toepassing zijn.
C44: Parameter | G44: Eenheid | H44: =JAAR -> 2023
C45: Directe emissies | G45: t CO2 / jaar
C46: Geïmporteerde warmte | G46: TJ / jaar
C47: Geëxporteerde warmte | G47: TJ / jaar
C48: Uitwisselbaar elektriciteitsverbruik | G48: MWh / jaar
C49: Totale directe emissies | G49: t CO2 / jaar | H49: =IF(COUNT(H45:H48)>0,H45+(H46-H47)*EU_BMHEAT,"") -> 
C50: Indirecte emissies | G50: t CO2 / jaar | H50: =IF(COUNT(H45:H48)>0,H48*EU_BMEG,"") -> 
C52: Factor voor correctie van benchmark | H52: =IFERROR(($H$50/($H$49+$H$50))/EU_BMEG,0) -> 0
B54: (c) | C54: Identificatie van producten die vallen onder deze productbenchmark en worden geproduceerd binnen de inrichting:
C55: Een productbenchmark kan een aantal soortgelijke producten (of productgroepen) omvatten. In sommige gevallen kunnen tussenproducten relevant zijn voor de berekening van het maximale subsidiebedrag. De relevante producten moeten hier worden vermeld, zodat kan worden beoordeeld of de voor deze productbenchmark omschreven grenzen voldoen aan de in de wet gestelde eisen.
C59: Gebruik van PRODCOM-codes 2021 is verplicht.
C60: Hier vindt u een lijst met PRODCOM-codes 2021.
D62: Naam van product of productgroep | I62: Procedé | L62: PRODCOM 2007
C63: 1
C65: 2
C67: 3
C69: 4
C71: 5
C72: 5
B74: (d) | C74: Toelichting op de verstrekte gegevens
C75: Geef een toelichting op de wijze waarop de productiehoeveelheden en elektriciteitsverbruik is bepaald en hoe eventueel de directe emissies, uitwisselbaar elektriciteitsverbruik en warmte import en export zijn bepaald. Licht toe welke installatieonderdelen zijn meegenomen in de berekening. Maak duidelijk hoe de gegevens verkregen zijn (meting, berekening, balansmethode) en geef aan op welke wijze is verzekerd dat de best beschikbare informatie is gebruikt. Let op: om naar de volgende regel te gaan dient u ALT + Enter te gebruiken.
C96: Stuurt u ter verduidelijking of ter aanvulling nog een bijlage mee met de aanvraag?

Sheet B. Product BM4 (hidden)
Z1: Hidden Range
A2: B. | B2: Blad "productbenchmarks": historische gegevens productbenchmarks
A4: I | B4: Historische gegevens productbenchmark | Y4: ch | Z4: =IF(H6="Hoog-waardige chemicaliën",1,0) -> 0
Y5: eth | Z5: =IF(H6="Ethyleen-oxide/ ethyleen-glycolen EO/EG",1,0) -> 0
A6: 4 | B6: ="Productbenchmark "&A6 -> Productbenchmark 4 | Y6: arom | Z6: =IF(H6="Aromaten",1,0) -> 0
Z13: Dataset compleet? | AA13: =IF(H11="ja","waar","onwaar") -> onwaar
B18: (a) | C18: Activiteitsniveaus
C19: Bij dit punt dienen de "hoofdactiviteitsniveaus" te worden gemeld. Dit zijn de gegevens die toepasbaar zijn voor de berekening van de subsidie.
C20: Doorgaans zijn dit de productiegegevens van het product.
C22: =IF(OR(H6="Hoog-waardige chemicaliën",H6="Aromaten",H6="Ethyleen-oxide/ ethyleen-glycolen EO/EG"),"U dient de passende rekentool te gebruiken","") -> 
C24: Hoofdactiviteitsniveau: | G24: Eenheid | H24: =JAAR -> 2023
C25: Productiegegevens | G25: ton | AA25: =IF(H27="","U heeft de productiegegevens niet ingevoerd. Voer de productiegegevens in of geef aan dat u dit jaar niet geproduceerd heeft.",IF(AND(H27<>"",OR(H45="",H46="",H47="",H48=""),$H$36="relevant"),"U heeft gegevens in de tabel -Uitwisselbaarheid van brandstof en elektriciteit- niet ingevuld. Vul de gegevens in of een 0 indien niet van toepassing.","")) -> U heeft de productiegegevens niet ingevoerd. Voer de productiegegevens in of geef aan dat u dit jaar niet geproduceerd heeft.
C27: Waarde gebruikt voor berekening | H27: =IF($C$22<>"",H26,IF(H25="","",H25)) -> 
C28: Referentie-output
B31: (b) | C31: Elektriciteitsverbruik:
C32: Hoeveelheid elektriciteit die verbruikt is bij de productie van het bovengenoemd product.
G33: Eenheid | H33: =JAAR -> 2023
C34: Totale elektriciteitsverbruik voor dit product | G34: MWh
C37: Volgens bijlage 4.4.2, behorende bij artikel 4.4.1 en 4.4.3 van de Regeling nationale EZ-subsidies zijn de volgende gegevens nodig voor de berekening van de correctiefactor van de productbenchmark:
C38: - | D38: De relevante indirecte emissies ten gevolge van deze productie;
C39: - | D39: De totale directe emissies ten gevolge van deze productie, bepaald op basis van:
E40: - De aan deze productie toegewezen directe emissies;
E41: - Nettohoeveelheid (meetbare) warmte voor deze productie;
E42: - Het relevante elektriciteitsgebruik voor deze productie
C43: De relevante factor wordt bepaald op basis van de referentiejaren die van toepassing zijn.
C44: Parameter | G44: Eenheid | H44: =JAAR -> 2023
C45: Directe emissies | G45: t CO2 / jaar
C46: Geïmporteerde warmte | G46: TJ / jaar
C47: Geëxporteerde warmte | G47: TJ / jaar
C48: Uitwisselbaar elektriciteitsverbruik | G48: MWh / jaar
C49: Totale directe emissies | G49: t CO2 / jaar | H49: =IF(COUNT(H45:H48)>0,H45+(H46-H47)*EU_BMHEAT,"") -> 
C50: Indirecte emissies | G50: t CO2 / jaar | H50: =IF(COUNT(H45:H48)>0,H48*EU_BMEG,"") -> 
C52: Factor voor correctie van benchmark | H52: =IFERROR($H$50/($H$49+$H$50)/EU_BMEG,0) -> 0
B54: (c) | C54: Identificatie van producten die vallen onder deze productbenchmark en worden geproduceerd binnen de inrichting:
C55: Een productbenchmark kan een aantal soortgelijke producten (of productgroepen) omvatten. In sommige gevallen kunnen tussenproducten relevant zijn voor de berekening van het maximale subsidiebedrag. De relevante producten moeten hier worden vermeld, zodat kan worden beoordeeld of de voor deze productbenchmark omschreven grenzen voldoen aan de in de wet gestelde eisen.
C59: Gebruik van PRODCOM-codes 2021 is verplicht.
C60: Hier vindt u een lijst met PRODCOM-codes 2021.
D62: Naam van product of productgroep | I62: Procedé | L62: PRODCOM 2007
C63: 1
C65: 2
C67: 3
C69: 4
C71: 5
C72: 5
B74: (d) | C74: Toelichting op de verstrekte gegevens
C75: Geef een toelichting op de wijze waarop de productiehoeveelheden en elektriciteitsverbruik is bepaald en hoe eventueel de directe emissies, uitwisselbaar elektriciteitsverbruik en warmte import en export zijn bepaald. Licht toe welke installatieonderdelen zijn meegenomen in de berekening. Maak duidelijk hoe de gegevens verkregen zijn (meting, berekening, balansmethode) en geef aan op welke wijze is verzekerd dat de best beschikbare informatie is gebruikt. Let op: om naar de volgende regel te gaan dient u ALT + Enter te gebruiken.
C96: Stuurt u ter verduidelijking of ter aanvulling nog een bijlage mee met de aanvraag?

Sheet B. Product BM5 (hidden)
Z1: Hidden Range
A2: B. | B2: Blad "productbenchmarks": historische gegevens productbenchmarks
A4: I | B4: Historische gegevens productbenchmark | Y4: ch | Z4: =IF(H6="Hoog-waardige chemicaliën",1,0) -> 0
Y5: eth | Z5: =IF(H6="Ethyleen-oxide/ ethyleen-glycolen EO/EG",1,0) -> 0
A6: 5 | B6: ="Productbenchmark "&A6 -> Productbenchmark 5 | Y6: arom | Z6: =IF(H6="Aromaten",1,0) -> 0
Z13: Dataset compleet? | AA13: =IF(H11="ja","waar","onwaar") -> onwaar
B18: (a) | C18: Activiteitsniveaus
C19: Bij dit punt dienen de "hoofdactiviteitsniveaus" te worden gemeld. Dit zijn de gegevens die toepasbaar zijn voor de berekening van de subsidie.
C20: Doorgaans zijn dit de productiegegevens van het product.
C22: =IF(OR(H6="Hoog-waardige chemicaliën",H6="Aromaten",H6="Ethyleen-oxide/ ethyleen-glycolen EO/EG"),"U dient de passende rekentool te gebruiken","") -> 
C24: Hoofdactiviteitsniveau: | G24: Eenheid | H24: =JAAR -> 2023
C25: Productiegegevens | G25: ton | AA25: =IF(H27="","U heeft de productiegegevens niet ingevoerd. Voer de productiegegevens in of geef aan dat u dit jaar niet geproduceerd heeft.",IF(AND(H27<>"",OR(H45="",H46="",H47="",H48=""),$H$36="relevant"),"U heeft gegevens in de tabel -Uitwisselbaarheid van brandstof en elektriciteit- niet ingevuld. Vul de gegevens in of een 0 indien niet van toepassing.","")) -> U heeft de productiegegevens niet ingevoerd. Voer de productiegegevens in of geef aan dat u dit jaar niet geproduceerd heeft.
C27: Waarde gebruikt voor berekening | H27: =IF($C$22<>"",H26,IF(H25="","",H25)) -> 
C28: Referentie-output
B31: (b) | C31: Elektriciteitsverbruik:
C32: Hoeveelheid elektriciteit die verbruikt is bij de productie van het bovengenoemd product.
G33: Eenheid | H33: =JAAR -> 2023
C34: Totale elektriciteitsverbruik voor dit product | G34: MWh
C37: Volgens bijlage 4.4.2, behorende bij artikel 4.4.1 en 4.4.3 van de Regeling nationale EZ-subsidies zijn de volgende gegevens nodig voor de berekening van de correctiefactor van de productbenchmark:
C38: - | D38: De relevante indirecte emissies ten gevolge van deze productie;
C39: - | D39: De totale directe emissies ten gevolge van deze productie, bepaald op basis van:
E40: - De aan deze productie toegewezen directe emissies;
E41: - Nettohoeveelheid (meetbare) warmte voor deze productie;
E42: - Het relevante elektriciteitsgebruik voor deze productie
C43: De relevante factor wordt bepaald op basis van de referentiejaren die van toepassing zijn.
C44: Parameter | G44: Eenheid | H44: =JAAR -> 2023
C45: Directe emissies | G45: t CO2 / jaar
C46: Geïmporteerde warmte | G46: TJ / jaar
C47: Geëxporteerde warmte | G47: TJ / jaar
C48: Uitwisselbaar elektriciteitsverbruik | G48: MWh / jaar
C49: Totale directe emissies | G49: t CO2 / jaar | H49: =IF(COUNT(H45:H48)>0,H45+(H46-H47)*EU_BMHEAT,"") -> 
C50: Indirecte emissies | G50: t CO2 / jaar | H50: =IF(COUNT(H45:H48)>0,H48*EU_BMEG,"") -> 
C52: Factor voor correctie van benchmark | H52: =IFERROR(($H$50/($H$49+$H$50))/EU_BMEG,0) -> 0
B54: (c) | C54: Identificatie van producten die vallen onder deze productbenchmark en worden geproduceerd binnen de inrichting:
C55: Een productbenchmark kan een aantal soortgelijke producten (of productgroepen) omvatten. In sommige gevallen kunnen tussenproducten relevant zijn voor de berekening van het maximale subsidiebedrag. De relevante producten moeten hier worden vermeld, zodat kan worden beoordeeld of de voor deze productbenchmark omschreven grenzen voldoen aan de in de wet gestelde eisen.
C59: Gebruik van PRODCOM-codes 2021 is verplicht.
C60: Hier vindt u een lijst met PRODCOM-codes 2021.
D62: Naam van product of productgroep | I62: Procedé | L62: PRODCOM 2007
C63: 1
C65: 2
C67: 3
C69: 4
C71: 5
B74: (d)
C75: Geef een toelichting op de wijze waarop de productiehoeveelheden en elektriciteitsverbruik is bepaald en hoe eventueel de directe emissies, uitwisselbaar elektriciteitsverbruik en warmte import en export zijn bepaald. Licht toe welke installatieonderdelen zijn meegenomen in de berekening. Maak duidelijk hoe de gegevens verkregen zijn (meting, berekening, balansmethode) en geef aan op welke wijze is verzekerd dat de best beschikbare informatie is gebruikt. Let op: om naar de volgende regel te gaan dient u ALT + Enter te gebruiken.
C96: Stuurt u ter verduidelijking of ter aanvulling nog een bijlage mee met de aanvraag?

Sheet B. Product BM6 (hidden)
Z1: Hidden Range
A2: B. | B2: Blad "productbenchmarks": historische gegevens productbenchmarks
A4: I | B4: Historische gegevens productbenchmark | Y4: ch | Z4: =IF(H6="Hoog-waardige chemicaliën",1,0) -> 0
Y5: eth | Z5: =IF(H6="Ethyleen-oxide/ ethyleen-glycolen EO/EG",1,0) -> 0
A6: 6 | B6: ="Productbenchmark "&A6 -> Productbenchmark 6 | Y6: arom | Z6: =IF(H6="Aromaten",1,0) -> 0
Z13: Dataset compleet? | AA13: =IF(H11="ja","waar","onwaar") -> onwaar
B18: (a) | C18: Activiteitsniveaus
C19: Bij dit punt dienen de "hoofdactiviteitsniveaus" te worden gemeld. Dit zijn de gegevens die toepasbaar zijn voor de berekening van de subsidie.
C20: Doorgaans zijn dit de productiegegevens van het product.
C22: =IF(OR(H6="Hoog-waardige chemicaliën",H6="Aromaten",H6="Ethyleen-oxide/ ethyleen-glycolen EO/EG"),"U dient de passende rekentool te gebruiken","") -> 
C24: Hoofdactiviteitsniveau: | G24: Eenheid | H24: =JAAR -> 2023
C25: Productiegegevens | G25: ton | AA25: =IF(H27="","U heeft de productiegegevens niet ingevoerd. Voer de productiegegevens in of geef aan dat u dit jaar niet geproduceerd heeft.",IF(AND(H27<>"",OR(H45="",H46="",H47="",H48=""),$H$36="relevant"),"U heeft gegevens in de tabel -Uitwisselbaarheid van brandstof en elektriciteit- niet ingevuld. Vul de gegevens in of een 0 indien niet van toepassing.","")) -> U heeft de productiegegevens niet ingevoerd. Voer de productiegegevens in of geef aan dat u dit jaar niet geproduceerd heeft.
C27: Waarde gebruikt voor berekening | H27: =IF($C$22<>"",H26,IF(H25="","",H25)) -> 
C28: Referentie-output
B31: (b) | C31: Elektriciteitsverbruik:
C32: Hoeveelheid elektriciteit die verbruikt is bij de productie van het bovengenoemd product.
G33: Eenheid | H33: =JAAR -> 2023
C34: Totale elektriciteitsverbruik voor dit product | G34: MWh
C37: Volgens bijlage 4.4.2, behorende bij artikel 4.4.1 en 4.4.3 van de Regeling nationale EZ-subsidies zijn de volgende gegevens nodig voor de berekening van de correctiefactor van de productbenchmark:
C38: - | D38: De relevante indirecte emissies ten gevolge van deze productie;
C39: - | D39: De totale directe emissies ten gevolge van deze productie, bepaald op basis van:
E40: - De aan deze productie toegewezen directe emissies;
E41: - Nettohoeveelheid (meetbare) warmte voor deze productie;
E42: - Het relevante elektriciteitsgebruik voor deze productie
C43: De relevante factor wordt bepaald op basis van de referentiejaren die van toepassing zijn.
C44: Parameter | G44: Eenheid | H44: =JAAR -> 2023
C45: Directe emissies | G45: t CO2 / jaar
C46: Geïmporteerde warmte | G46: TJ / jaar
C47: Geëxporteerde warmte | G47: TJ / jaar
C48: Uitwisselbaar elektriciteitsverbruik | G48: MWh / jaar
C49: Totale directe emissies | G49: t CO2 / jaar | H49: =IF(COUNT(H45:H48)>0,H45+(H46-H47)*EU_BMHEAT,"") -> 
C50: Indirecte emissies | G50: t CO2 / jaar | H50: =IF(COUNT(H45:H48)>0,H48*EU_BMEG,"") -> 
C52: Factor voor correctie van benchmark | H52: =IFERROR(($H$50/($H$49+$H$50))/EU_BMEG,0) -> 0
B54: (c) | C54: Identificatie van producten die vallen onder deze productbenchmark en worden geproduceerd binnen de inrichting:
C55: Een productbenchmark kan een aantal soortgelijke producten (of productgroepen) omvatten. In sommige gevallen kunnen tussenproducten relevant zijn voor de berekening van het maximale subsidiebedrag. De relevante producten moeten hier worden vermeld, zodat kan worden beoordeeld of de voor deze productbenchmark omschreven grenzen voldoen aan de in de wet gestelde eisen.
C59: Gebruik van PRODCOM-codes 2021 is verplicht.
C60: Hier vindt u een lijst met PRODCOM-codes 2021.
D62: Naam van product of productgroep | I62: Procedé | L62: PRODCOM 2007
C63: 1
C65: 2
C67: 3
C69: 4
C71: 5
B74: (d)
C75: Geef een toelichting op de wijze waarop de productiehoeveelheden en elektriciteitsverbruik is bepaald en hoe eventueel de directe emissies, uitwisselbaar elektriciteitsverbruik en warmte import en export zijn bepaald. Licht toe welke installatieonderdelen zijn meegenomen in de berekening. Maak duidelijk hoe de gegevens verkregen zijn (meting, berekening, balansmethode) en geef aan op welke wijze is verzekerd dat de best beschikbare informatie is gebruikt. Let op: om naar de volgende regel te gaan dient u ALT + Enter te gebruiken.
C96: Stuurt u ter verduidelijking of ter aanvulling nog een bijlage mee met de aanvraag?

Sheet C. Fall Back (hidden)
A2: C | B2: Blad "Fall back": historische gegevens elektriciteitsgebruik
A4: I | B4: Historische gegevens elektriciteitsverbruik Fall back
P11: Witte ruimte in bronsheet | Z11: TRUE
B19: (a) | C19: Historisch elektriciteitsverbruik:
C20: Geef de totale hoeveelheid elektriciteit die is verbruikt voor de productie die valt onder de Fall Back-methode. Hieronder wordt productie van producten verstaan die geen productbenchmark hebben, maar wel behoren tot de sectoren die genoemd zijn, zie hiervoor de IKC-ETS-website.
AA21: =IF(H24="","U heeft het elektriciteitsverbruik niet ingevoerd. Voer de gegevens in of geef aan dat u dit jaar niet geproduceerd heeft.",IF(AND(H24<>"",OR(N34="",F34="",C34="")),"U heeft tabel (b) niet volledig ingevuld. Vul de tabel in.","")) -> U heeft het elektriciteitsverbruik niet ingevoerd. Voer de gegevens in of geef aan dat u dit jaar niet geproduceerd heeft.
F23: Eenheid | H23: =JAAR -> 2023
C24: Totaal elektriciteitsverbruik | F24: MWh
Y25: Terug naar
Y26: 1 | Z26: =IF('B. Product BM1'!$H$6<>"","ja","") -> 
Y27: 2 | Z27: =IF('B. Product BM2'!$H$6<>"","ja","") -> 
B28: (b) | C28: Identificatie van relevante producten waarvoor subsidie wordt aangevraagd | Y28: 3 | Z28: =IF('B. Product BM3'!$H$6<>"","ja","") -> 
C29: Vermeld hier de producten die worden vervaardigd binnen de inrichting die vallen onder de Fall Back-methode. Hieronder wordt productie van producten verstaan die geen productbenchmark hebben, maar wel behoren tot de sectoren die in de wettekst genoemd zijn. | Y29: 4 | Z29: =IF('B. Product BM4'!$H$6<>"","ja","") -> 
Y30: 5 | Z30: =IF('B. Product BM5'!$H$6<>"","ja","") -> 
Y31: 6 | Z31: =IF('B. Product BM6'!$H$6<>"","ja","") -> 
C32: Elektriciteitsverbruik per product in MWh | Y32: Inrichting
C33: Productnaam | F33: PRODCOM 2021 | N33: =JAAR -> 2023
N53: =SUM(N34:N52) -> 0
B56: (c) | C56: Geef een toelichting op de wijze waarop het elektriciteitsverbruik is bepaald en welke installatieonderdelen zijn meegerekend
C57: Voeg de toelichting indien nodig toe in een separaat document. Maak duidelijk hoe de gegeves verkregen zijn (meting, berekening, balansmethode) en geef een toelichting op welke wijze is verzekerd dat de best beschikbare informatie is gebruikt. Let op: om naar de volgende regel te gaan dient u ALT + Enter te gebruiken.
C92: Stuurt u ter verduidelijking of ter aanvulling nog een bijlage mee met de aanvraag?

Sheet D. Speciale Benchmarks (hidden)
AA1: Hidden Range
A2: D. | B2: Blad "Speciale Benchmarks"
A4: I | B4: Hoog-waardige chemicaliën
A6: 1 | C6: Rekentool voor de historische activiteitsniveaus voor stoomkraaksubinstallaties
C7: Deze tool helpt u de HAL's (historische activiteitsniveaus) te bepalen voor de benchmark voor stoomkraken. (bijlage III, punt 8, bij de CIMs).
C8: De uitkomst van deze tool wordt automatisch gekopieerd naar blad "B_ProductBM", invullijn "(a).ii" van de betreffende subinstallatie.
B10: (a) | C10: Totale productie van hoogwaardige chemicaliën (HVC totaal)
C11: Vul hier de jaarproductiegegevens in, uitgedrukt in ton HVC (zonder correcties)
G12: Eenheid | H12: =JAAR -> 2023
C13: HVC totaal | G13: t/jaar
B15: (b) | C15: Gegevens extra materiaalinput:
C16: Overeenkomstig bijlage III, punt 4, bij de CIMs zijn de volgende gegevens nodig:
C17: - | D17: historische extra materiaalinput waterstof in elk jaar van de referentieperiode, uitgedrukt in ton waterstof;
C18: - | D18: historische extra materiaalinput ethyleen in elk jaar van de referentieperiode, uitgedrukt in ton ethyleen;
C19: - | D19: historische extra materiaalinput hoogwaardige chemicaliën anders dan waterstof en ethyleen in elk jaar van de referentieperiode, uitgedrukt in ton HVC.
C21: Extra materiaalinput | G21: Eenheid | H21: =JAAR -> 2023
C22: Waterstof | G22: t/jaar
C23: Ethyleen | G23: t/jaar
C24: Andere HVC | G24: t/jaar
B26: (c) | C26: Uitkomst: Activiteitsniveaus voor netto-HVC
C27: Hier wordt het gecorrigeerde activiteitsniveau (nettohoeveelheid HVC) berekend aan de hand van de in de CIMs, bijlage III, punt 4, vermelde formule (vóór het bepalen van de mediaan). De uitkomst van deze tool wordt gebruikt in blad "B_ProductBM", invullijn "(a).ii" van de betreffende subinstallatie, waaruit de mediaan wordt berekend.
C30: Extra materiaalinput | G30: Eenheid | H30: =JAAR -> 2023
C31: Netto-HVC-productieniveaus | G31: t/jaar | H31: =IF(ISNUMBER(H13),H13-SUM(H22:H24),"") ->  | AB31: =JAAR -> 2023
AA32: =B4 -> Hoog-waardige chemicaliën | AB32: =H31 -> 
A33: II | B33: Aromaten
A35: 1 | C35: Rekentool voor de historische activiteitsniveaus voor aromatensubinstallaties.
C36: Deze tool helpt u de HAL's (historische activiteitsniveaus) te bepalen voor de aromatenbenchmark (bijlage III, punt 5, bij de CIMs).
C37: De uitkomst van deze tool wordt automatisch gekopieerd naar blad "B_ProductBM", invullijn "(a).ii" van de betreffende subinstallatie.
B39: (a) | C39: CWT-doorvoergegevens
C40: Vul hier de jaardoorvoergegevens in voor elke CWT-functie.
C41: Zie bijlage II, punt 2, bij de CIMs voor de definitie en grenzen van de CWT-functies.
C42: Voor de basis worden de volgende afkortingen gebruikt:
C43: F | D43: Netto zuivere materiaalinput
C44: P | D44: Productmateriaalinput
C45: Belangrijke opmerking: Overeenkomstig bijlage II bij de CIMs is de eenheid voor rapportage kiloton doorvoer.
C47: CWT-functie | G47: Basis (kt/a) | I47: CWT-factor | J47: =JAAR -> 2023
C48: Hydrobehandelaar nafta / benzine | G48: F | I48: 1.1
C49: Aromatisch-solventextractie | G49: F | I49: 5.25
C50: TDP/ TDA | G50: F | I50: 1.85
C51: Hydrodealkylering | G51: F | I51: 2.45
C52: Xyleenisomerisatie | G52: F | I52: 1.85
C53: Paraxyleenproductie | G53: P | I53: 6.4
C54: Cyclohexaanproductie | G54: P | I54: 3
C55: Cumeenproductie | G55: P | I55: 5
B57: (b) | C57: Uitkomst: Activiteitsniveaus voor de aromatenbenchmark uitgedrukt als CWT
C58: Hier wordt het aromatenactiviteitsniveau berekend aan de hand van de in de CIMs, bijlage III, punt 5, vermelde formule (vóór het bepalen van de mediaan).
C59: Belangrijke opmerking: De rapportage wordt in kton gedaan, maar de benchmark wordt uitgedrukt in tCO2/CWT, waarbij CWT in ton is uitgedrukt. Daarom worden de onderstaande uitkomsten met een factor 1000 vermenigvuldigd, wat niet expliciet in bijlage III, punt 5, bij de CIMs wordt vermeld.
C61: De uitkomst van deze tool wordt gebruikt in blad "B_ProductBM", invullijn "(a).ii" van de betreffende subinstallatie, waaruit de mediaan wordt berekend.
C63: Extra materiaalinput | G63: Eenheid | J63: =JAAR -> 2023 | AB63: =JAAR -> 2023
C64: Aromatenactiviteitsniveau | G64: CWT/jaar | J64: =IF(COUNT(J48:J55)>0,1000*SUMPRODUCT($I48:$I55,J48:J55),"") ->  | AA64: =B33 -> Aromaten | AB64: =J64 -> 
A66: III | B66: Ethyleen-oxide/ ethyleen-glycolen EO/EG
A68: 1 | C68: Rekentool voor de historische activiteitsniveaus voor ethyleenoxide/ethyleenglycolen.
C69: Deze tool helpt u de HAL's (historische activiteitsniveaus) te bepalen voor de benchmark voor ethyleenoxide/ethyleenglycolen (bijlage III, punt 8, bij de CIMs).
C70: De uitkomst van deze tool wordt automatisch gekopieerd naar blad "B_ProductBM", invullijn "(a).ii" van de betreffende subinstallatie.
B72: (a) | C72: Productiegegevens voor ethyleenoxide/ethyleenglycolen:
C73: Vul hier de jaarproductiegegevens in van de verschillende producten die onder deze benchmark vallen voor elk jaar van de referentieperiode.
C74: De tabel toont ook de voor berekening gebruikte waarden van CF(EOE). CF(EOE) is de conversiefactor voor elke stof ten opzichte van ethyleenoxide.
C78: Extra materiaalinput | F78: CF(EOE) | G78: Eenheid | H78: =JAAR -> 2023
C79: Ethyleenoxide | F79: 1 | G79: t/jaar
C80: Mono-ethyleenglycol | F80: 0.71 | G80: t/jaar
C81: Di-ethyleenglycol | F81: 0.83 | G81: t/jaar
C82: Tri-ethyleenglycol | F82: 0.88 | G82: t/jaar
C83: Som van producten | G83: t/jaar | H83: =IF(COUNT(H79:H82)>0,SUM(H79:H82),"") -> 
B85: (b) | C85: Uitkomst: Activiteitsniveaus voor de benchmark voor subinstallaties voor ethyleenoxide/ethyleenglycolen:
C86: Het historisch activiteitsniveau, uitgedrukt in ton ethyleenoxide-equivalenten wordt berekend aan de hand van de in de CIMs, bijlage III, punt 8, vermelde formule. De uitkomst van deze tool wordt gebruikt in blad "B_ProductBM", invullijn "(a).ii" van de betreffende subinstallatie, waaruit de mediaan wordt berekend.
C89: Extra materiaalinput | G89: Eenheid | H89: =JAAR -> 2023 | AB89: =JAAR -> 2023
C90: Netto-HVC-productieniveaus | G90: t/jaar | H90: =IF(ISNUMBER(H83),SUMPRODUCT($F$79:$F$82,H79:H82),"") ->  | AA90: =B66 -> Ethyleen-oxide/ ethyleen-glycolen EO/EG | AB90: =H90 -> 
AA95: BM1
AA96: BM2
AA97: BM3
AA98: BM4
AA99: BM5
AA100: BM6

Sheet E. Overzicht berekening (hidden)
X1: Hidden | CA1: E. Overzicht berekening | CB1: $G$8 | CC1: =IF('A. Inrichting'!K8="","",'A. Inrichting'!K8)
A2: E. | B2: Samenvatting en berekening maximaal aan te vragen subsidiebedrag | I2: =JAAR -> 2023 | CA2: E. Overzicht berekening | CB2: $G$9 | CC2: =IF('A. Inrichting'!K9="","",'A. Inrichting'!K9)
CA3: E. Overzicht berekening | CB3: $G$10 | CC3: =IF('A. Inrichting'!K10="","",'A. Inrichting'!K10)
CA4: E. Overzicht berekening | CB4: $C$15 | CC4: =IF(ISBLANK('A. Inrichting'!C62),"",'A. Inrichting'!C62)
CA5: E. Overzicht berekening | CB5: $G$15 | CC5: =IFERROR(VLOOKUP(C15,Benchmarks,3,FALSE),"")
A6: I | B6: Gegevens installatie | CA6: E. Overzicht berekening | CB6: $H$15 | CC6: =IFERROR(VLOOKUP(C15,Benchmarks,2,FALSE),"")
CA7: E. Overzicht berekening | CB7: $J$15 | CC7: =IFERROR(IF(C15<>"",'B. Product BM1'!H29,""),"")
B8: Naam van de inrichting: | G8: =IF('A. Inrichting'!K8="","",'A. Inrichting'!K8) ->  | CA8: E. Overzicht berekening | CB8: $K$15 | CC8: =IFERROR(IF(C15<>"","Ton",""),"")
B9: Locatie van de inrichting: | G9: =IF('A. Inrichting'!K9="","",'A. Inrichting'!K9) -> 
B10: Naam van de subsidieaanvrager: | G10: =IF('A. Inrichting'!K10="","",'A. Inrichting'!K10) ->  | CA10: E. Overzicht berekening | CB10: $L$15 | CC10: =IF(AND('B. Product BM1'!$H$36="niet relevant",C15<>""),"nvt",IF(AND('B. Product BM1'!$H$36="relevant",C15<>""),'B. Product BM1'!$H$52,""))
B11: KvK nummer van de subsidieaanvrager | G11: =IF('A. Inrichting'!K11="","",'A. Inrichting'!K11) ->  | CA11: E. Overzicht berekening | CB11: $M$15 | CC11: =IF(C15="","",IF('B. Product BM1'!J29="Uw productieniveau in 2013 is 50% tot 75% lager dan het productieniveau in de referentieperiode. Dit heeft gevolgen voor de hoogte van de subsidie","50% tot 75%",IF('B. Product BM1'!J29="Uw productieniveau in 2013 is 75% tot 90% lager dan het productieniveau in de referentieperiode. Dit heeft gevolgen voor de hoogte van de subsidie","75% tot 90%",IF('B. Product BM1'!J29="Uw productieniveau in 2013 is (meer dan) 90% lager dan het productieniveau in de referentieperiode. De subsidie is nihil","(meer dan) 90%","nvt"))))
CA12: E. Overzicht berekening | CB12: $O$15 | CC12: =IF(M15="50% tot 75%",50%,IF(M15="75% tot 90%",75%,IF(M15="(meer dan) 90%",100%,IF(M15="nvt","nvt",""))))
A13: II | B13: Productbenchmarks | CA13: E. Overzicht berekening | CB13: $Q$15 | CC13: =IF(C15="","",IF(OR('E. Overzicht berekening'!C15="ammoniak",'E. Overzicht berekening'!C15="aromaten",'E. Overzicht berekening'!C15="Ethyleen-oxide/ ethyleen-glycolen EO/EG",'E. Overzicht berekening'!C15="Hoog-gelegeerd staal uit elektrische vlamboog-ovens",'E. Overzicht berekening'!C15="Hoog-waardige chemicaliën",'E. Overzicht berekening'!C15="Koolstofstaal uit elektrische vlamboogovens",'E. Overzicht berekening'!C15="Roest",'E. Overzicht berekening'!C15="Styreen"),parameters!$E$5*parameters!$E$6*parameters!$E$7*'E. Overzicht berekening'!G15*'E. Overzicht berekening'!J15*'E. Overzicht berekening'!L15 *IF(O15="nvt",1,O15),parameters!E5*parameters!E6*parameters!E7*'E. Overzicht berekening'!G15*'E. Overzicht berekening'!J15))
CA14: E. Overzicht berekening | CB14: $C$16 | CC14: =IF(ISBLANK('A. Inrichting'!C64),"",'A. Inrichting'!C64)
C15: Producttype | G15: Benchmarkwaarde | H15: Benchmarkeenheid | J15: Referentieoutput | K15: Productie-eenheid | Q15: Berekende maximale subsidie | CA15: E. Overzicht berekening | CB15: $G$16 | CC15: =IFERROR(VLOOKUP(C16,Benchmarks,3,FALSE),"")
B16: 1 | C16: =IF(ISBLANK('A. Inrichting'!C63),"",'A. Inrichting'!C63) ->  | G16: =IFERROR(VLOOKUP(C16,Benchmarks,3,FALSE),"") ->  | H16: =IFERROR(VLOOKUP(C16,Benchmarks,2,FALSE),"") ->  | J16: =IFERROR(IF(C16<>"",'B. Product BM1'!H27,""),"") ->  | K16: =IFERROR(IF(C16<>"","Ton",""),"") ->  | L16: =IF(AND('B. Product BM1'!$H$36="niet relevant",C16<>""),"nvt",IF(AND('B. Product BM1'!$H$36="relevant",C16<>""),'B. Product BM1'!$H$52,"")) ->  | Q16: =IFERROR(IF(C16="","",parameters!$E$5*parameters!$E$6*parameters!$E$7*G16*J16),"") ->  | CA16: E. Overzicht berekening | CB16: $H$16 | CC16: =IFERROR(VLOOKUP(C16,Benchmarks,2,FALSE),"")
B17: 2 | C17: =IF(ISBLANK('A. Inrichting'!C65),"",'A. Inrichting'!C65) ->  | J17: =IFERROR(IF(C17<>"",'B. Product BM2'!H27,""),"") ->  | K17: =IFERROR(IF(C17<>"","Ton",""),"") ->  | L17: =IF(AND('B. Product BM2'!$H$36="niet relevant",C17<>""),"nvt",IF(AND('B. Product BM2'!$H$36="relevant",C17<>""),'B. Product BM2'!$H$52,"")) ->  | Q17: =IFERROR(IF(C17="","",parameters!$E$5*parameters!$E$6*parameters!$E$7*G17*J17),"") ->  | CA17: E. Overzicht berekening | CB17: $J$16 | CC17: =IFERROR(IF(C16<>"",'B. Product BM2'!H29,""),"")
B18: 3 | C18: =IF(ISBLANK('A. Inrichting'!C67),"",'A. Inrichting'!C67) ->  | J18: =IFERROR(IF(C18<>"",'B. Product BM3'!H27,""),"") ->  | L18: =IF(AND('B. Product BM3'!$H$36="niet relevant",C18<>""),"nvt",IF(AND('B. Product BM3'!$H$36="relevant",C18<>""),'B. Product BM3'!$H$52,"")) ->  | Q18: =IFERROR(IF(C18="","",parameters!$E$5*parameters!$E$6*parameters!$E$7*G18*J18),"") ->  | CA18: E. Overzicht berekening | CB18: $K$16 | CC18: =IFERROR(IF(C16<>"","Ton",""),"")
B19: 4 | C19: =IF(ISBLANK('A. Inrichting'!C69),"",'A. Inrichting'!C69) ->  | J19: =IFERROR(IF(C19<>"",'B. Product BM4'!H27,""),"") ->  | L19: =IF(AND('B. Product BM4'!$H$36="niet relevant",C19<>""),"nvt",IF(AND('B. Product BM4'!$H$36="relevant",C19<>""),'B. Product BM4'!$H$52,"")) ->  | Q19: =IFERROR(IF(C19="","",parameters!$E$5*parameters!$E$6*parameters!$E$7*G19*J19),"") ->  | CA19: E. Overzicht berekening | CB19: $L$16 | CC19: =IF(AND('B. Product BM2'!$H$36="niet relevant",C16<>""),"nvt",IF(AND('B. Product BM2'!$H$36="relevant",C16<>""),'B. Product BM2'!$H$52,""))
B20: 5 | C20: =IF(ISBLANK('A. Inrichting'!C71),"",'A. Inrichting'!C71) ->  | J20: =IFERROR(IF(C20<>"",'B. Product BM5'!H27,""),"") ->  | L20: =IF(AND('B. Product BM5'!$H$36="niet relevant",C20<>""),"nvt",IF(AND('B. Product BM5'!$H$36="relevant",C20<>""),'B. Product BM5'!$H$52,"")) ->  | Q20: =IFERROR(IF(C20="","",parameters!$E$5*parameters!$E$6*parameters!$E$7*G20*J20),"") ->  | CA20: E. Overzicht berekening | CB20: $M$16 | CC20: =IF(C16="","",IF('B. Product BM2'!J23="Uw productieniveau in 2013 is 50% tot 75% lager dan het productieniveau in de referentieperiode. Dit heeft gevolgen voor de hoogte van de subsidie","50% tot 75%",IF('B. Product BM2'!J23="Uw productieniveau in 2013 is 75% tot 90% lager dan het productieniveau in de referentieperiode. Dit heeft gevolgen voor de hoogte van de subsidie","75% tot 90%",IF('B. Product BM2'!J23="Uw productieniveau in 2013 is (meer dan) 90% lager dan het productieniveau in de referentieperiode. De subsidie is nihil","(meer dan) 90%","nvt"))))
B21: 6 | C21: =IF(ISBLANK('A. Inrichting'!C73),"",'A. Inrichting'!C73) ->  | J21: =IFERROR(IF(C21<>"",'B. Product BM6'!H27,""),"") ->  | L21: =IF(AND('B. Product BM6'!$H$36="niet relevant",C21<>""),"nvt",IF(AND('B. Product BM6'!$H$36="relevant",C21<>""),'B. Product BM6'!$H$52,"")) ->  | Q21: =IFERROR(IF(C21="","",parameters!$E$5*parameters!$E$6*parameters!$E$7*G21*J21),"") ->  | CA21: E. Overzicht berekening | CB21: $O$16 | CC21: =IF(M16="50% tot 75%",50%,IF(M16="75% tot 90%",75%,IF(M16="(meer dan) 90%",100%,IF(M16="nvt","nvt",""))))
CA22: E. Overzicht berekening | CB22: $Q$16 | CC22: =IF(C16="","",IF(OR('E. Overzicht berekening'!C16="ammoniak",'E. Overzicht berekening'!C16="aromaten",'E. Overzicht berekening'!C16="Ethyleen-oxide/ ethyleen-glycolen EO/EG",'E. Overzicht berekening'!C16="Hoog-gelegeerd staal uit elektrische vlamboog-ovens",'E. Overzicht berekening'!C16="Hoog-waardige chemicaliën",'E. Overzicht berekening'!C16="Koolstofstaal uit elektrische vlamboogovens",'E. Overzicht berekening'!C16="Roest",'E. Overzicht berekening'!C16="Styreen"),parameters!$E$5*parameters!$E$6*parameters!$E$7*'E. Overzicht berekening'!G16*'E. Overzicht berekening'!J16*'E. Overzicht berekening'!L16 *IF(O16="nvt",1,O16),parameters!E6*parameters!E7*parameters!E8*'E. Overzicht berekening'!G16*'E. Overzicht berekening'!J16))
A23: III | B23: Fall Back | CA23: E. Overzicht berekening | CB23: $C$17 | CC23: =IF(ISBLANK('A. Inrichting'!C66),"",'A. Inrichting'!C66)
CA24: E. Overzicht berekening | CB24: $G$17 | CC24: =IFERROR(VLOOKUP(C17,Benchmarks,3,FALSE),"")
C25: =JAAR -> 2023 | F25: Fall Back benchmark | G25: Referentie elektriciteitsverbruik | M25: Berekende maximale subsidie | CA25: E. Overzicht berekening | CB25: $H$17 | CC25: =IFERROR(VLOOKUP(C17,Benchmarks,2,FALSE),"")
V26: fall BACK | W26: =IF('A. Inrichting'!N78="Ja","ja","") ->  | CA26: E. Overzicht berekening | CB26: $J$17 | CC26: =IFERROR(IF(C17<>"",'B. Product BM3'!H29,""),"")
C27: Fall Back-berekening | F27: =EU_FBBM -> 0.782655048 | G27: =IFERROR('C. Fall Back'!H24,0) -> 0 | H27: MWh | M27: =IFERROR(IF(K27="nvt",IF(OR('A. Inrichting'!N78="Nee",'A. Inrichting'!N78=""),"",parameters!$E$5*parameters!$E$6*parameters!$E$7*parameters!E8*G27),IF(OR('A. Inrichting'!N78="Nee",'A. Inrichting'!N78=""),"",parameters!$E$5*parameters!$E$6*parameters!$E$7*parameters!E8*G27)-(IF(OR('A. Inrichting'!N78="Nee",'A. Inrichting'!N78=""),"",parameters!$E$5*parameters!$E$6*parameters!$E$7*parameters!E8*G27)*K27)),"") ->  | V27: 1 | W27: =IF('B. Product BM1'!$H$6<>"","ja","") ->  | CA27: E. Overzicht berekening | CB27: $K$17 | CC27: =IFERROR(IF(C17<>"","Ton",""),"")
V28: 2 | W28: =IF('B. Product BM2'!$H$6<>"","ja","") ->  | CA28: E. Overzicht berekening | CB28: $L$17 | CC28: =IF(AND('B. Product BM3'!$H$36="niet relevant",C17<>""),"nvt",IF(AND('B. Product BM3'!$H$36="relevant",C17<>""),'B. Product BM3'!$H$52,""))
A29: IV | B29: Aan te vragen subsidie | V29: 3 | W29: =IF('B. Product BM3'!$H$6<>"","ja","") ->  | CA29: E. Overzicht berekening | CB29: $M$17 | CC29: =IF(C17="","",IF('B. Product BM3'!J23="Uw productieniveau in 2013 is 50% tot 75% lager dan het productieniveau in de referentieperiode. Dit heeft gevolgen voor de hoogte van de subsidie","50% tot 75%",IF('B. Product BM3'!J23="Uw productieniveau in 2013 is 75% tot 90% lager dan het productieniveau in de referentieperiode. Dit heeft gevolgen voor de hoogte van de subsidie","75% tot 90%",IF('B. Product BM3'!J23="Uw productieniveau in 2013 is (meer dan) 90% lager dan het productieniveau in de referentieperiode. De subsidie is nihil","(meer dan) 90%","nvt"))))
V30: 4 | W30: =IF('B. Product BM4'!$H$6<>"","ja","") ->  | CA30: E. Overzicht berekening | CB30: $O$17 | CC30: =IF(M17="50% tot 75%",50%,IF(M17="75% tot 90%",75%,IF(M17="(meer dan) 90%",100%,IF(M17="nvt","nvt",""))))
B31: Totaal berekende maximale subsidie | F31: =JAAR -> 2023 | K31: =IF(Q16="",0,Q16)+IF(Q17="",0,Q17)+IF(Q18="",0,Q18)+IF(Q19="",0,Q19)+IF(Q20="",0,Q20)+IF(Q21="",0,Q21)+IF(M27="",0,M27) -> 0 | V31: 5 | W31: =IF('B. Product BM5'!$H$6<>"","ja","") ->  | CA31: E. Overzicht berekening | CB31: $Q$17 | CC31: =IF(C17="","",IF(OR('E. Overzicht berekening'!C17="ammoniak",'E. Overzicht berekening'!C17="aromaten",'E. Overzicht berekening'!C17="Ethyleen-oxide/ ethyleen-glycolen EO/EG",'E. Overzicht berekening'!C17="Hoog-gelegeerd staal uit elektrische vlamboog-ovens",'E. Overzicht berekening'!C17="Hoog-waardige chemicaliën",'E. Overzicht berekening'!C17="Koolstofstaal uit elektrische vlamboogovens",'E. Overzicht berekening'!C17="Roest",'E. Overzicht berekening'!C17="Styreen"),parameters!$E$5*parameters!$E$6*parameters!$E$7*'E. Overzicht berekening'!G17*'E. Overzicht berekening'!J17*'E. Overzicht berekening'!L17 *IF(O17="nvt",1,O17),parameters!E7*parameters!E8*parameters!E9*'E. Overzicht berekening'!G17*'E. Overzicht berekening'!J17))
B32: Generieke aftrek | K32: =EU_AIT*EU_CT*NL_PT*EU_FBBM*1000 -> 22079.97072 | V32: 6 | W32: =IF('B. Product BM6'!$H$6<>"","ja","") ->  | CA32: E. Overzicht berekening | CB32: $C$18 | CC32: =IF(ISBLANK('A. Inrichting'!C68),"",'A. Inrichting'!C68)
V33: Inrichting | W33: =IF('B. Product BM6'!$H$6<>"","ja","") ->  | CA33: E. Overzicht berekening | CB33: $G$18 | CC33: =IFERROR(VLOOKUP(C18,Benchmarks,3,FALSE),"")
B34: Maximaal aan te vragen subsidie over | F34: =JAAR -> 2023 | K34: =ROUNDUP((K31-K32),0) -> -22080 | L34: Dit bedrag invullen bij 'Aangevraagde compensatie' in de aanvraag. | CA34: E. Overzicht berekening | CB34: $H$18 | CC34: =IFERROR(VLOOKUP(C18,Benchmarks,2,FALSE),"")
CA35: E. Overzicht berekening | CB35: $J$18 | CC35: =IFERROR(IF(C18<>"",'B. Product BM4'!H29,""),"")
B36: =IF(K34<0,"Het resultaat is negatief. U ontvangt geen subsidie.","") -> Het resultaat is negatief. U ontvangt geen subsidie. | CA36: E. Overzicht berekening | CB36: $K$18 | CC36: =IFERROR(IF(C18<>"","Ton",""),"")
CA37: E. Overzicht berekening | CB37: $L$18 | CC37: =IF(AND('B. Product BM4'!$H$36="niet relevant",C18<>""),"nvt",IF(AND('B. Product BM4'!$H$36="relevant",C18<>""),'B. Product BM4'!$H$52,""))
CA38: E. Overzicht berekening | CB38: $M$18 | CC38: =IF(C18="","",IF('B. Product BM4'!J23="Uw productieniveau in 2013 is 50% tot 75% lager dan het productieniveau in de referentieperiode. Dit heeft gevolgen voor de hoogte van de subsidie","50% tot 75%",IF('B. Product BM4'!J23="Uw productieniveau in 2013 is 75% tot 90% lager dan het productieniveau in de referentieperiode. Dit heeft gevolgen voor de hoogte van de subsidie","75% tot 90%",IF('B. Product BM4'!J23="Uw productieniveau in 2013 is (meer dan) 90% lager dan het productieniveau in de referentieperiode. De subsidie is nihil","(meer dan) 90%","nvt"))))
G39: Let op, sla eerst de rekensheet op voordat u onderstaand op "Genereer verstuurbestand" klikt! | CA39: E. Overzicht berekening | CB39: $O$18 | CC39: =IF(M18="50% tot 75%",50%,IF(M18="75% tot 90%",75%,IF(M18="(meer dan) 90%",100%,IF(M18="nvt","nvt",""))))
CA40: E. Overzicht berekening | CB40: $Q$18 | CC40: =IF(C18="","",IF(OR('E. Overzicht berekening'!C18="ammoniak",'E. Overzicht berekening'!C18="aromaten",'E. Overzicht berekening'!C18="Ethyleen-oxide/ ethyleen-glycolen EO/EG",'E. Overzicht berekening'!C18="Hoog-gelegeerd staal uit elektrische vlamboog-ovens",'E. Overzicht berekening'!C18="Hoog-waardige chemicaliën",'E. Overzicht berekening'!C18="Koolstofstaal uit elektrische vlamboogovens",'E. Overzicht berekening'!C18="Roest",'E. Overzicht berekening'!C18="Styreen"),parameters!$E$5*parameters!$E$6*parameters!$E$7*'E. Overzicht berekening'!G18*'E. Overzicht berekening'!J18*'E. Overzicht berekening'!L18 *IF(O18="nvt",1,O18),parameters!E8*parameters!E9*parameters!E10*'E. Overzicht berekening'!G18*'E. Overzicht berekening'!J18))
CA41: E. Overzicht berekening | CB41: $C$19 | CC41: =IF(ISBLANK('A. Inrichting'!C70),"",'A. Inrichting'!C70)
CA42: E. Overzicht berekening | CB42: $G$19 | CC42: =IFERROR(VLOOKUP(C19,Benchmarks,3,FALSE),"")
CA43: E. Overzicht berekening | CB43: $H$19 | CC43: =IFERROR(VLOOKUP(C19,Benchmarks,2,FALSE),"")
CA44: E. Overzicht berekening | CB44: $J$19 | CC44: =IFERROR(IF(C19<>"",'B. Product BM5'!H29,""),"")
CA45: E. Overzicht berekening | CB45: $K$19 | CC45: =IFERROR(IF(C19<>"","Ton",""),"")
CA46: E. Overzicht berekening | CB46: $L$19 | CC46: =IF(AND('B. Product BM5'!$H$36="niet relevant",C19<>""),"nvt",IF(AND('B. Product BM5'!$H$36="relevant",C19<>""),'B. Product BM5'!$H$52,""))
CA47: E. Overzicht berekening | CB47: $M$19 | CC47: =IF(C19="","",IF('B. Product BM5'!J23="Uw productieniveau in 2013 is 50% tot 75% lager dan het productieniveau in de referentieperiode. Dit heeft gevolgen voor de hoogte van de subsidie","50% tot 75%",IF('B. Product BM5'!J23="Uw productieniveau in 2013 is 75% tot 90% lager dan het productieniveau in de referentieperiode. Dit heeft gevolgen voor de hoogte van de subsidie","75% tot 90%",IF('B. Product BM5'!J23="Uw productieniveau in 2013 is (meer dan) 90% lager dan het productieniveau in de referentieperiode. De subsidie is nihil","(meer dan) 90%","nvt"))))
CA48: E. Overzicht berekening | CB48: $O$19 | CC48: =IF(M19="50% tot 75%",50%,IF(M19="75% tot 90%",75%,IF(M19="(meer dan) 90%",100%,IF(M19="nvt","nvt",""))))
CA49: E. Overzicht berekening | CB49: $Q$19 | CC49: =IF(C19="","",IF(OR('E. Overzicht berekening'!C19="ammoniak",'E. Overzicht berekening'!C19="aromaten",'E. Overzicht berekening'!C19="Ethyleen-oxide/ ethyleen-glycolen EO/EG",'E. Overzicht berekening'!C19="Hoog-gelegeerd staal uit elektrische vlamboog-ovens",'E. Overzicht berekening'!C19="Hoog-waardige chemicaliën",'E. Overzicht berekening'!C19="Koolstofstaal uit elektrische vlamboogovens",'E. Overzicht berekening'!C19="Roest",'E. Overzicht berekening'!C19="Styreen"),parameters!$E$5*parameters!$E$6*parameters!$E$7*'E. Overzicht berekening'!G19*'E. Overzicht berekening'!J19*'E. Overzicht berekening'!L19 *IF(O19="nvt",1,O19),parameters!E9*parameters!E10*parameters!E11*'E. Overzicht berekening'!G19*'E. Overzicht berekening'!J19))
CA50: E. Overzicht berekening | CB50: $C$20 | CC50: =IF(ISBLANK('A. Inrichting'!C72),"",'A. Inrichting'!C72)
CA51: E. Overzicht berekening | CB51: $G$20 | CC51: =IFERROR(VLOOKUP(C20,Benchmarks,3,FALSE),"")
CA52: E. Overzicht berekening | CB52: $H$20 | CC52: =IFERROR(VLOOKUP(C20,Benchmarks,2,FALSE),"")
CA53: E. Overzicht berekening | CB53: $J$20 | CC53: =IFERROR(IF(C20<>"",'B. Product BM6'!H29,""),"")
CA54: E. Overzicht berekening | CB54: $K$20 | CC54: =IFERROR(IF(C20<>"","Ton",""),"")
CA55: E. Overzicht berekening | CB55: $L$20 | CC55: =IF(AND('B. Product BM6'!$H$36="niet relevant",C20<>""),"nvt",IF(AND('B. Product BM6'!$H$36="relevant",C20<>""),'B. Product BM6'!$H$52,""))
CA56: E. Overzicht berekening | CB56: $M$20 | CC56: =IF(C20="","",IF('B. Product BM6'!J23="Uw productieniveau in 2013 is 50% tot 75% lager dan het productieniveau in de referentieperiode. Dit heeft gevolgen voor de hoogte van de subsidie","50% tot 75%",IF('B. Product BM6'!J23="Uw productieniveau in 2013 is 75% tot 90% lager dan het productieniveau in de referentieperiode. Dit heeft gevolgen voor de hoogte van de subsidie","75% tot 90%",IF('B. Product BM6'!J23="Uw productieniveau in 2013 is (meer dan) 90% lager dan het productieniveau in de referentieperiode. De subsidie is nihil","(meer dan) 90%","nvt"))))
CA57: E. Overzicht berekening | CB57: $O$20 | CC57: =IF(M20="50% tot 75%",50%,IF(M20="75% tot 90%",75%,IF(M20="(meer dan) 90%",100%,IF(M20="nvt","nvt",""))))
CA58: E. Overzicht berekening | CB58: $Q$20 | CC58: =IF(C20="","",IF(OR('E. Overzicht berekening'!C20="ammoniak",'E. Overzicht berekening'!C20="aromaten",'E. Overzicht berekening'!C20="Ethyleen-oxide/ ethyleen-glycolen EO/EG",'E. Overzicht berekening'!C20="Hoog-gelegeerd staal uit elektrische vlamboog-ovens",'E. Overzicht berekening'!C20="Hoog-waardige chemicaliën",'E. Overzicht berekening'!C20="Koolstofstaal uit elektrische vlamboogovens",'E. Overzicht berekening'!C20="Roest",'E. Overzicht berekening'!C20="Styreen"),parameters!$E$5*parameters!$E$6*parameters!$E$7*'E. Overzicht berekening'!G20*'E. Overzicht berekening'!J20*'E. Overzicht berekening'!L20 *IF(O20="nvt",1,O20),parameters!E10*parameters!E11*parameters!E12*'E. Overzicht berekening'!G20*'E. Overzicht berekening'!J20))
CA59: E. Overzicht berekening | CB59: $T$16 | CC59: =J16*G16
CA60: E. Overzicht berekening | CB60: $G$26 | CC60: =IFERROR('C. Fall Back'!H26,0)
CA61: E. Overzicht berekening | CB61: $I$26 | CC61: =IFERROR(IF(G26="","",IF('C. Fall Back'!J26="Uw productieniveau in 2013 is 50% tot 75% lager dan het productieniveau in de referentieperiode. Dit heeft gevolgen voor de hoogte van de subsidie","50% tot 75%",IF('C. Fall Back'!J26="Uw productieniveau in 2013 is 75% tot 90% lager dan het productieniveau in de referentieperiode. Dit heeft gevolgen voor de hoogte van de subsidie","75% tot 90%",IF('C. Fall Back'!J26="Uw productieniveau in 2013 is (meer dan) 90% lager dan het productieniveau in de referentieperiode. De subsidie is nihil","(meer dan) 90%","nvt")))),0)
CA62: E. Overzicht berekening | CB62: $K$26 | CC62: =IFERROR(IF(I26="50% tot 75%",50%,IF(I26="75% tot 90%",75%,IF(I26="(meer dan) 90%",100%,IF(I26="nvt","nvt","")))),0)
CA63: E. Overzicht berekening | CB63: $M$26 | CC63: =IFERROR(parameters!E5*parameters!E6*parameters!E7*parameters!E8*'E. Overzicht berekening'!G26*IF(K26="nvt",1,K26),0)
CA64: E. Overzicht berekening | CB64: $AA$26 | CC64: =IF('B. Product BM1'!$H$6<>"","ja","")
CA65: E. Overzicht berekening | CB65: $K$30 | CC65: =IF(Q15="",0,Q15)+IF(Q16="",0,Q16)+IF(Q17="",0,Q17)+IF(Q18="",0,Q18)+IF(Q19="",0,Q19)+IF(Q20="",0,Q20)+IF(M26="",0,M26)
CA66: E. Overzicht berekening | CB66: $K$31 | CC66: =EU_AIT*EU_CT*NL_PT*EU_FBBM*1000
CA67: E. Overzicht berekening | CB67: $W$25 | CC67: =IF('A. Inrichting'!N77="Ja","ja","")
CA68: E. Overzicht berekening | CB68: $W$26 | CC68: =IF('B. Product BM1'!$H$6<>"","ja","")
CA69: E. Overzicht berekening | CB69: $W$27 | CC69: =IF('B. Product BM2'!$H$6<>"","ja","")
CA70: E. Overzicht berekening | CB70: $W$28 | CC70: =IF('B. Product BM3'!$H$6<>"","ja","")
CA71: E. Overzicht berekening | CB71: $W$29 | CC71: =IF('B. Product BM4'!$H$6<>"","ja","")
CA72: E. Overzicht berekening | CB72: $W$30 | CC72: =IF('B. Product BM5'!$H$6<>"","ja","")
CA73: E. Overzicht berekening | CB73: $W$31 | CC73: =IF('B. Product BM6'!$H$6<>"","ja","")
CA74: E. Overzicht berekening | CB74: $W$32 | CC74: =IF('B. Product BM6'!$H$6<>"","ja","")
CA75: E. Overzicht berekening | CB75: $K$33 | CC75: =K30-K31
CA76: E. Overzicht berekening | CB76: $B$35 | CC76: =IF(K33<0,"Het resultaat is negatief. U ontvangt geen subsidie.","")
CA77: parameters | CB77: $E$1608 | CC77: =CONCATENATE(B1608,"``",C1608)

Sheet parameters (hidden)
A1: parameters | D1: 2024-06-11
A2: named ranges
C3: Berekeningsfactoren
B4: Symbool | C4: Parameter | D4: Eenheid | E4: Waarde
A5: EU_AIT | B5: Ait | C5: maximale steunintensiteit in jaar t, zie artikel 3.12.4 eerste lid van de regeling | D5: % | E5: 0.75
A6: EU_CT | B6: Ct | C6: regionale CO2-emissiefactor als omschreven in bijlage IV EU richtsnoeren | D6: ton CO2/MWh | E6: 0.45 | H6: Rekenvoorbeeld regel 35, per jaar procentuele vermindering. | L6: Dus niet zo:
A7: NL_PT | B7: Pt-1 | C7: EUAtermijnkoers in jaar t-1 (bron PM) | D7: €/ton CO2 | E7: 83.59 | J7: 1.09 | M7: 1.09
A8: EU_FBBM | B8: EF | C8: fallback-benchmark voor elektriciteitsverbruik als omschreven in bijlage 1 van de EU richtsnoeren | D8: - | E8: 0.782655048 | F8: Was in 2022 uitvoeringsjaar 0,80 | I8: 0.884 | J8: 100 | L8: 0.884 | M8: 100
A9: NL_DREMPEL | B9: - | C9: Drempel | D9: Mwh | E9: 1000 | H9: 1e jaar | I9: =I8*J9/J8 -> 0.8743644 | J9: =100-$J$7 -> 98.91 | K9: 1e jaar
A10: EU_BMHEAT | B10: BM-heat | C10: Warmte benchmark tbv omrekenen TJ naar t CO2 | D10: t CO2/TJ | E10: 62.3 | I10: =I9 -> 0.8743644 | J10: 100
A11: EU_BMEG | B11: BM-eg | C11: Elektriciteits benchmark tbv omrekenen MWh naar t CO2 | D11: t CO2/Mwh | E11: 0.465 | H11: 2e jaar | I11: =I10*J11/J10 -> 0.864833828 | J11: =100-$J$7 -> 98.91 | K11: 2e jaar | L11: =L8*M11/M8 -> 0.8647288 | M11: =100-2*$J$7 -> 97.82
A12: JAAR | B12: JAAR | C12: Jaar waarover wordt ingediend | E12: 2023
C14: Benchmark List
B15: Productbenchmark | C15: Benchmarkeenheid | D15: Benchmarkwaarde | E15: Productieeenheid | F15: Speciale benchmark | G15: StartwaardeBM 2022 uitvoeringsjaar | H15: Jaarlijks verminderingspercentage | I15: 2023 uitvoeringsjaar | J15: 2024 uitvoeringsjaar
B16: 17.11.11.00 Houtcellulose: Houtcellulose voor oplossingen (“dissolving grades”) | C16: MWh/t 90 % sdt | D16: 0.8844002042 | E16: Aluminiumoxide | F16: FALSE | G16: 0.904 | H16: 1.09 | I16: =G16*(100-$H16)/100 -> 0.8941464 | J16: =I16*(100-$H16)/100 -> 0.8844002042
B17: 17.11.12.00 Houtcellulose: Natron- en sulfaathoutcellulose, andere dan die voor oplossingen | C17: MWh/t 90 % sdt | D17: 0.3218668885 | E17: Ton houtcellulose | F17: FALSE | G17: 0.329 | H17: 1.09 | I17: =G17*(100-$H17)/100 -> 0.3254139 | J17: =I17*(100-$H17)/100 -> 0.3218668885
B18: 17.11.13.00 Houtcellulose: Sulfiet-houtcellulose, andere dan die voor oplossingen | C18: MWh/t 90 % sdt | D18: 0.4333952328 | E18: Ton houtcellulose | F18: FALSE | G18: 0.443 | H18: 1.09 | I18: 0.4381713 | J18: 0.4333952328
B19: 17.11.14.00 Gedeeltelijk chemisch ontsloten houtslijp (halfmechanische houtpulp)Gedeeltelijk chemisch ontsloten houtslijp (halfmechanische houtpulp) | C19: MWh/t 90 % sdt | D19: 0.4333952328 | E19: Ton gedeeltelijk chemisch ontsloten houtslijp (halfchemische houtpulp) | F19: FALSE | G19: 0.443 | H19: 1.09 | I19: 0.4381713 | J19: 0.4333952328
B20: 17.11.14.00 Teruggewonnen papier | C20: MWh/t 90 % sdt | D20: 0.2543628906 | E20: Ton teruggewonnen papier | F20: FALSE | G20: 0.26 | H20: 1.09 | I20: 0.257166 | J20: 0.2543628906
B21: 17.11.14.00 Ontinkt teruggewonnen papier | C21: MWh/t 90 % sdt | D21: 0.3815443359 | E21: Ton ontinkt teruggewonnen papier | F21: FALSE | G21: 0.39 | H21: 1.09 | I21: 0.385749 | J21: 0.3815443359
B22: 17.12 Krantenpapier | C22: MWh/t product | D22: 0.7836333668 | E22: Ton krantenpapier | F22: FALSE | G22: 0.801 | H22: 1.09 | I22: 0.7922691 | J22: 0.7836333668
B23: 17.12 Ongecoat fijnpapier | C23: MWh/t product | D23: 0.6310156325 | E23: Ton ongecoat fijnpapier | F23: FALSE | G23: 0.645 | H23: 1.09 | I23: 0.6379695 | J23: 0.6310156325
B24: 17.12 Gecoat fijnpapier | C24: MWh/t product | D24: 0.5263355198 | E24: Ton gecoat fijnpapier | F24: FALSE | G24: 0.538 | H24: 1.09 | I24: 0.5321358 | J24: 0.5263355198
B25: 17.12 Tissuepapier | C25: MWh/t product | D25: 0.9049448992 | E25: Ton tissuepapier | F25: FALSE | G25: 0.925 | H25: 1.09 | I25: 0.9149175 | J25: 0.9049448992
B26: 17.12 Testliner en golfblad | C26: MWh/t product | D26: 0.2543628906 | E26: Ton papier | F26: FALSE | G26: 0.26 | H26: 1.09 | I26: 0.257166 | J26: 0.2543628906
B27: 17.12 Ongecoat karton | C27: MWh/t product | D27: 0.2621894411 | E27: Ton karton | F27: FALSE | G27: 0.268 | H27: 1.09 | I27: 0.2650788 | J27: 0.2621894411
B28: 17.12 Gecoat karton | C28: MWh/t product | D28: 0.3942624804 | E28: Ton karton | F28: FALSE | G28: 0.403 | H28: 1.09 | I28: 0.3986073 | J28: 0.3942624804
B29: 20.13 Zwavelzuur | C29: MWh/t product | D29: 0.05478585336 | E29: Ton zwavelzuur | F29: FALSE | G29: 0.056 | H29: 1.09 | I29: 0.0553896 | J29: 0.05478585336
B30: 20.13 Chloor | C30: MWh/t product | D30: 1.805976523 | E30: Ton chloor | F30: FALSE | G30: 1.846 | H30: 1.09 | I30: 1.8258786 | J30: 1.805976523
B31: 20.13.21.70 Silicium Silicium: Andere dan die 99,99 of meer gewichtspercenten silicium bevat | C31: MWh/t product | D31: 11.61264427 | E31: Ton silicium | F31: FALSE | G31: 11.87 | H31: 1.09 | I31: 11.740617 | J31: 11.61264427
B32: 20.13.21.60 Silicium Silicium: bevattende 99,99 of meer gewichtspercenten silicium | C32: MWh/t product | D32: 58.6991286 | E32: Ton silicium | F32: FALSE | G32: 60 | H32: 1.09 | I32: 59.346 | J32: 58.6991286
B33: 20.13 Siliciumcarbide | C33: MWh/t product | D33: 6.065576622 | E33: Ton siliciumcarbide | F33: FALSE | G33: 6.2 | H33: 1.09 | I33: 6.13242 | J33: 6.065576622
B34: 24.10 Oxystaal | C34: MWh/t product | D34: 0.0334450186 | E34: Ton (gegoten) ruwstaal | F34: FALSE | G34: 0.03385 | H34: 0.6 | I34: 0.0336469 | J34: 0.0334450186
B35: 24.10.12.10 Ferromangaan: Ferromangaan, bevattende > 2 gewichtspercenten koolstof, met een korrel van ≤ 5 mm en een mangaangehalte van > 65 gewichtspercenten | C35: MWh/t product | D35: 2.111586598 | E35: Ferromangaan bevattende > 2 gewichtspercenten koolstof | F35: FALSE | G35: 2.2 | H35: 2.03 | I35: 2.15534 | J35: 2.111586598
B36: 24.10.12.20 Ferromangaan: Overig ferromangaan, bevattende > 2 gewichtspercenten koolstof (m.u.v. die met een korrel van ≤ 5 mm en een mangaangehalte van > 65 gewichtspercenten) | C36: MWh/t product | D36: 2.111586598 | E36: Ferromangaan bevattende > 2 gewichtspercenten koolstof | F36: FALSE | G36: 2.2 | H36: 2.03 | I36: 2.15534 | J36: 2.111586598
B37: 24.10.12.25 Ferromangaan: Overig ferromangaan, bevattende ≤ 2 gewichtspercenten koolstof | C37: MWh/t product | D37: 1.369646334 | E37: Ferromangaan bevattende <= 2 gewichtspercenten koolstof | F37: FALSE | G37: 1.4 | H37: 1.09 | I37: 1.38474 | J37: 1.369646334
B38: 24.10.12.35 Ferrosilicium: Ferrosilicium bevattende > 55 gewichtspercenten silicium | C38: MWh/t product | D38: 8.354842637 | E38: ferrosilicium bevattende > 55 gewichtspercenten silicium | F38: FALSE | G38: 8.54 | H38: 1.09 | I38: =G38*(100-$H38)/100 -> 8.446914 | J38: 8.354842637
B39: 24.10 Ferronikkel | C39: MWh/t product | D39: 9.078798557 | E39: ferronikkel | F39: FALSE | G39: 9.28 | H39: 1.09 | I39: 9.178848 | J39: 9.078798557
B40: 24.10 Ferrosilicomangaan | C40: MWh/t product | D40: 3.342843279 | E40: ferrosilicomangaan | F40: FALSE | G40: 3.419 | H40: 1.12 | I40: 3.3807072 | J40: 3.342843279
B41: 24.42 Primair aluminium | C41: MWh/t product | D41: 13.83058688 | E41: Ruw niet-gelegeerd aluminium | F41: FALSE | G41: 13.9 | H41: 0.25 | I41: 13.86525 | J41: 13.83058688
B42: 24.42 Aluminiumoxide (raffinage) | C42: MWh/t product | D42: 0.195584642 | E42: aluminiumoxide | F42: FALSE | G42: 0.2 | H42: 1.11 | I42: 0.19778 | J42: 0.195584642
B43: 24.43 Zink-elektrolyse | C43: MWh/t product | D43: 3.99320124 | E43: zink | F43: FALSE | G43: 3.994 | H43: 0.01 | I43: 3.9936006 | J43: 3.99320124
B44: 24.44 Onbewerkt geraffineerd koper | C44: MWh/t product | D44: 0.3032788311 | E44: Koperkathoden | F44: FALSE | G44: 0.31 | H44: 1.09 | I44: 0.306621 | J44: 0.3032788311
C65: Keuzelijsten
C66: jaren
C68: 2005
C69: 2006
C70: 2007
C71: 2008
C72: 2009
C73: 2010
C74: 2011
C78: Drempel
C79: NACE
B80: 14.11 | C80: 14.11 Vervaardiging van kleding van leer
B81: 17.11 | C81: 17.11 Vervaardiging van pulp
B82: 17.12 | C82: 17.12 Vervaardiging van papier en karton
B83: 19.20 | C83: 19.20 Vervaardiging van geraffineerde aardolieproducten
B84: 20.11.11.50 | C84: 20.11.11.50 Waterstof
B85: 20.11.12.90 | C85: 20.11.12.90 Anorganische zuurstofverbindingen van niet-metalen
B86: 20.13 | C86: 20.13 Vervaardiging van andere anorganische chemische basisproducten
B87: 20.16.40.15 | C87: 20.16.40.15 Polyethyleen in primaire vormen
B88: 23.14.12.10 | C88: 23.14.12.10 Matten van glasvezels
B89: 23.14.12.30 | C89: 23.14.12.30 Vliezen van glasvezels
B90: 24.10 | C90: 24.10 Vervaardiging van ijzer en staal en van ferrolegeringen
B91: 24.42 | C91: 24.42 Productie van aluminium
B92: 24.43 | C92: 24.43 Productie van lood, zink en tin
B93: 24.44 | C93: 24.44 Productie van koper
B94: 24.45 | C94: 24.45 Productie van overige non-ferrometalen
B95: 24.51 | C95: 24.51 Gieten van ijzer
C105: Drempel
A106: VT | C106: Relevant
A107: NVT | C107: Niet relevant
A108: ONV | C108: Onvolledig!
A111: Ja of Nee | B111: Ja
B112: Nee
C114: SBI-codes | D114: O.b.v. Standaard_Bedrijfsindeling_2008_update_2019_uitgewerkt
B115: 1 Landbouw, jacht en dienstverlening voor de landbouw en jacht
B116: 01.1 Teelt van eenjarige gewassen
B117: 01.11 Teelt van granen, peulvruchten en oliehoudende zaden
B118: 01.13 Teelt van groenten en wortel- en knolgewassen
B119: 01.13.1 Teelt van groenten in de volle grond
B120: 01.13.2 Teelt van groenten onder glas
B121: 01.13.3 Teelt van paddenstoelen
B122: 01.13.4 Teelt van aardappels en overige wortel- en knolgewassen
B123: 01.16 Teelt van vezelgewassen
B124: 01.19 Teelt van overige eenjarige gewassen
B125: 01.19.1 Teelt van snijbloemen en snijheesters in de volle grond
B126: 01.19.2 Teelt van snijbloemen en snijheesters onder glas
B127: 01.19.3 Teelt van voedergewassen
B128: 01.19.9 Teelt van overige eenjarige gewassen (rest)
B129: 01.2 Teelt van meerjarige gewassen
B130: 01.21 Druiventeelt
B131: 01.24 Teelt van hardfruit en steenvruchten
B132: 01.24.1 Teelt van appels en peren
B133: 01.24.2 Teelt van steenvruchten
B134: 01.25 Teelt van overige boomvruchten, kleinfruit en noten
B135: 01.25.1 Teelt van aardbeien in de volle grond
B136: 01.25.2 Teelt van aardbeien onder glas
B137: 01.25.3 Teelt van houtig kleinfruit in de volle grond (incl. overige boomvruchten en noten)
B138: 01.25.4 Teelt van houtig kleinfruit onder glas
B139: 01.27 Teelt van gewassen bestemd voor de vervaardiging van dranken
B140: 01.28 Teelt van specerijgewassen en van aromatische en medicinale gewassen
B141: 01.29 Teelt van overige meerjarige gewassen
B142: 01.3 Teelt van sierplanten
B143: 01.30 Teelt van sierplanten
B144: 01.30.1 Teelt van bloembollen
B145: 01.30.2 Teelt van perkplanten in de volle grond
B146: 01.30.3 Teelt van perkplanten onder glas
B147: 01.30.4 Teelt van potplanten onder glas
B148: 01.30.5 Teelt van boomkwekerijgewassen in de volle grond
B149: 01.30.9 Teelt van overige sierplanten in de volle grond
B150: 01.4 Fokken en houden van dieren
B151: 01.41 Fokken en houden van melkvee
B152: 01.41.1 Houden van melkvee
B153: 01.41.2 Opfokken van jongvee voor de melkveehouderij
B154: 01.42 Fokken en houden van runderen (geen melkvee)
B155: 01.42.1 Houden van vleeskalveren
B156: 01.42.2 Overige vleesveehouderij en zoogkoeienbedrijven
B157: 01.43 Fokken en houden van paarden en ezels
B158: 01.45 Fokken en houden van schapen en geiten
B159: 01.45.1 Fokken en houden van schapen
B160: 01.45.2 Fokken en houden van geiten
B161: 01.46 Fokken en houden van varkens
B162: 01.46.1 Fokvarkens- en vermeerderingsbedrijven
B163: 01.46.2 Vleesvarkensbedrijven
B164: 01.46.3 Gesloten en deels gesloten varkensbedrijven
B165: 01.47 Opfokken en/of houden van pluimvee
B166: 01.47.1 Opfokken en/of houden van leghennen
B167: 01.47.2 Opfokken en/of houden van vleeskuikens
B168: 01.47.3 Opfokken en/of houden van ouderdieren van leghennen en vleeskuikens
B169: 01.47.9 Opfokken en/of houden van overig pluimvee
B170: 01.49 Fokken en houden van overige dieren
B171: 01.49.1 Fokken en houden van edelpelsdieren
B172: 01.49.9 Fokken en houden van overige dieren (rest)
B173: 01.5 Akker- en/of tuinbouw in combinatie met het fokken en houden van dieren
B174: 01.50 Akker- en/of tuinbouw in combinatie met het fokken en houden van dieren
B175: 01.6 Dienstverlening voor de landbouw; behandeling van gewassen en zaden na de oogst
B176: 01.61 Dienstverlening voor de akker- en/of tuinbouw
B177: 01.62 Dienstverlening voor het fokken en houden van dieren
B178: 01.63 Behandeling van gewassen na de oogst
B179: 01.64 Behandeling van zaden voor vermeerdering
B180: 01.7 Jacht
B181: 01.70 Jacht
B182: 2 Bosbouw, exploitatie van bossen en dienstverlening voor de bosbouw
B183: 02.1 Bosbouw
B184: 02.10 Bosbouw
B185: 02.2 Exploitatie van bossen
B186: 02.20 Exploitatie van bossen
B187: 02.4 Dienstverlening voor de bosbouw
B188: 02.40 Dienstverlening voor de bosbouw
B189: 03 Visserij en kweken van vis en schaaldieren
B190: 03.1 Visserij
B191: 03.11 Zee- en kustvisserij
B192: 03.12 Binnenvisserij
B193: 03.2 Kweken van vis en schaaldieren
B194: 03.21 Kweken van zeevis en -schaaldieren
B195: 03.22 Kweken van zoetwatervis en -schaaldieren
B196: 6 Winning van aardolie en aardgas
B197: 06.1 Winning van aardolie
B198: 06.10 Winning van aardolie
B199: 06.2 Winning van aardgas
B200: 06.20 Winning van aardgas
B201: 8 Winning van delfstoffen (geen olie en gas)
B202: 08.1 Winning van zand, grind en klei
B203: 08.12 Winning van zand, grind en klei
B204: 08.9 Winning van overige delfstoffen
B205: 08.92 Winning van turf
B206: 08.93 Winning van zout
B207: 08.99 Winning van overige delfstoffen (rest)
B208: 9 Dienstverlening voor de winning van delfstoffen
B209: 09.1 Dienstverlening voor de winning van aardolie en aardgas
B210: 09.10 Dienstverlening voor de winning van aardolie en aardgas
B211: 09.9 Dienstverlening voor de winning van delfstoffen (geen olie en gas)
B212: 09.90 Dienstverlening voor de winning van delfstoffen (geen olie en gas)
B213: 10 Vervaardiging van voedingsmiddelen
B214: 10.1 Slachterijen en vleesverwerking
B215: 10.11 Slachterijen (geen pluimvee-)
B216: 10.12 Pluimveeslachterijen
B217: 10.13 Vleesverwerking (niet tot maaltijden)
B218: 10.2 Visverwerking
B219: 10.20 Visverwerking
B220: 10.3 Verwerking van aardappels, groente en fruit
B221: 10.31 Vervaardiging van aardappelproducten
B222: 10.32 Vervaardiging van fruit- en groentesap
B223: 10.39 Verwerking van groente en fruit (niet tot sap en maaltijden)
B224: 10.4 Vervaardiging van plantaardige en dierlijke oliën en vetten
B225: 10.41 Vervaardiging van plantaardige en dierlijke oliën en vetten (geen margarine en andere spijsvetten)
B226: 10.42 Vervaardiging van margarine en overige spijsvetten
B227: 10.5 Vervaardiging van zuivelproducten
B228: 10.51 Vervaardiging van zuivelproducten (geen consumptie-ijs)
B229: 10.52 Vervaardiging van consumptie-ijs
B230: 10.6 Vervaardiging van meel
B231: 10.61 Vervaardiging van meel (geen zetmeel)
B232: 10.62 Vervaardiging van zetmeel en zetmeelproducten
B233: 10.7 Vervaardiging van brood, banketbakkerswerk en deegwaren
B234: 10.71 Vervaardiging van brood en vers banketbakkerswerk
B235: 10.72 Vervaardiging van beschuit en koekjes en ander houdbaar banketbakkerswerk
B236: 10.73 Vervaardiging van deegwaren
B237: 10.8 Vervaardiging van overige voedingsmiddelen
... 5254 more rows
